Workbook

Sheet INICIO
A42: EN EL EXTRANJERO 1/

Sheet MENUDATOS (hidden)
A1: Cuadro 1 | B1: PADRÓN NACIONAL ELECTORA TOTAL Y VARIACIÓN SEGÚN PROVINCIA Y SEXO | C1: 1
A2: Gráfico 1 | B2: PADRÓN NACIONAL ELECTORAL, POR PROCESO ELECTORAL SEGÚN PROVINCIA | C2: G1
A3: Cuadro 2 | B3: COMPARATIVO PADRÓN ELECTORAL, FEBRERO 2010 Y 2014 | C3: 2
A4: Gráfico 2 | B4: DISTRIBUCIÓN DEL PADRÓN ELECTORAL POR SEXO Y GRUPOS DE EDAD | C4: G2
A5: Cuadro 3 | B5: ELECTORADO POR PROVINCIA , SEGÚN SEXO Y GRUPOS DE EDAD | C5: 3
A6: Cuadro 4 | B6: ELECTORADO EN EL EXTRANJETO POR SEXO SEGÚN CONTINENTE Y PAÍS | C6: 4
A7: Cuadro 5 | B7: ELECTORADO EN EL EXTRANJETO POR SEXO SEGÚN CONSULADO | C7: 5
A8: Cuadro 6 | B8: ELECTORADO NATURALIZADO POR PAÍS DE ORIGEN | C8: 6
A9: Cuadro 7 | B9: PROMEDIO, MEDIANA Y MODA DE LA EDAD DE LOS ELECTORES/AS | C9: 7
B10: ---- MENU PRINCIPAL ---- | C10: INICIO
A12: Cuadro 8 | B12: CANTONES Y DISTRITOS ADMINISTRATIVOS Y ELECTORALES SEGÚN PROVINCIA | C12: 8
A13: Cuadro 9 | B13: MOVIMIENTOS A LA DIVISIÓN TERRITORAIL ELECTORAL, SEGÚN PROVINCIA | C13: 9
A14: Cuadro 10 | B14: JUNTAS ELECTORALES, CENTROS DE VOTACIÓN Y TRANSMISIÓN SEGÚN PROVINCIA | C14: 10
A15: Cuadro 11 | B15: JUNTAS RECEPTORAS Y ELECTORADO H. ANCIANOS, C.PENITENCIARIOS Y Z.INDIGENAS SEGÚN PROVINCIA | C15: 11
A16: Cuadro 12 | B16: JUNTAS RECEPTORAS Y ELECTORADO EN CENTROS PENITENCIARIOS SEGÚN PROVINCIA Y DISTRITO ELECTORAL | C16: 12
A17: Cuadro 13 | B17: JUNTAS RECEPTORAS Y ELECTORADO EN HOGARES DE ANCIANOS SEGÚN PROVINCIA Y DISTRITO ELECTORAL | C17: 13
A18: Cuadro 14 | B18: JUNTAS RECEPTORAS Y ELECTORADO EN ZONAS INDÍGENAS SEGÚN PROVINCIA Y DISTRITO ELECTORAL | C18: 14
A19: Cuadro 15 | B19: JUNTAS RECEPTORAS Y ELECTORADO EN CENTROS DE SALUD MENTAL SEGÚN PROVINCIA Y DISTRITO ELECTORAL | C19: 15
B20: ---- MENU PRINCIPAL ---- | C20: INICIO
A22: Cuadro 16 | B22: PARTIDOS POLÍTICOS QUE PARTICIPAN SEGÚN ESCALA | C22: 16
A23: Cuadro 17 | B23: MONTO PRESUPUESTADO PARA LAS ELECCIONES SEGÚN AÑO | C23: 17
A24: Cuadro 18 | B24: DONACIONES REPORTADAS SEGÚN AÑO | C24: 18
A25: Cuadro 19 | B25: DONACIONES REPORTADAS SEGÚN PARTIDO POLÍTICO | C25: 19
A26: Cuadro 20 | B26: FISCALIZACIÓN DE LOS PARTIDOS POLÍTICOS, POR AÑO, SEGÚN TIPO DE FISCALIZACIÓN | C26: 20
B27: ---- MENU PRINCIPAL ---- | C27: INICIO
A30: Cuadro 21 | B30: COMPOSICIÓN DE PAPELETAS POR SEXO SEGÚN TIPO DE CANDIDATURA | C30: 21
A31: Gráfico 3 | B31: DISTRIBUCIÓN DEL TIPO DE CANDIDATURAS POR SEXO | C31: G3
A32: Cuadro 22 | B32: CANDIDATURAS A PRESIDENCIA Y VICEPRESIDENCIAS, POR SEXO SEGÚN GRUPOS DE EDAD | C32: 22
A33: Cuadro 23 | B33: CANDIDATOS DIPUTACIONES POR CARGO Y SEXO SEGÚN GRUPOS DE EDAD | C33: 23
A34: Gráfico 4 | B34: PIRAMIDE POBLACIONAL DE CANDIDATOS DIPUTACIONES POR SEXO SEGÚN GRUPOS DE EDAD | C34: G4
A35: Cuadro 24 | B35: CANDIDATURAS A DIPUTACIONES POR SEXO Y CARGO SEGÚN PARTIDO | C35: 24
A36: Cuadro 25 | B36: EDAD PROMEDIO CANDIDATOS A DIPUTACIONES POR CARGO Y SEXO SEGÚN PARTIDO | C36: 25
A37: Cuadro 26 | B37: CANDIDATURAS A DIPUTACIONES PROPIETARIAS POR SEXO SEGÚN POSICIÓN EN LA PAPELETA | C37: 26
A38: Cuadro 27 | B38: CANDIDATURAS A DIPUTACIONES PROPIETARIAS POR POSICIÓN EN LA PAPELETA SGÚN PARTIDO | C38: 27
A39: Cuadro 28 | B39: CANDIDATOS DIPUTACIONES POR SEXO SEGÚN CARGO Y PROVINCIA | C39: 28
A40: Gráfico 5 | B40: CANDIDATURAS A DIPUTACIONES EN PROPIEDAD POR PROVINCIA Y SEXO | C40: G5
A41: Cuadro 29 | B41: CANDIDATURAS A DIPUTACIONES POR AÑO ELECCION SEGÚN PROVINCIA PERIODO 2006, 2010, 2014 Y 2018 | C41: 29
A42: Cuadro 30 | B42: CANDIDATURAS A DIPUTACIONES POR AÑO ELECCION SEGÚN PARTIDO PERIODO 2006, 2010, 2014 Y 2018 | C42: 30
B43: ---- MENU PRINCIPAL ---- | C43: INICIO

Sheet 1
A2: CUADRO 1
A3: COSTA RICA: TOTAL Y VARIACIÓN DEL PADRÓN NACIONAL ELECTORAL, SEGÚN PROVINCIA
A4: Y SEXO, DE FEBRERO 2014 A FEBRERO 2018
A6: PROVINCIA Y SEXO | B6: PADRÓN NACIONAL ELECTORAL | D6: VARIACIÓN
B8: FEBRERO 2014 | C8: FEBRERO 2018 | D8: ABSOLUTO | E8: %
A10: COSTA RICA | B10: 3078321 | C10: 3322329 | D10: =+C10-B10 -> 244008 | E10: =+D10/B10*100 -> 7.926658721
A11: HOMBRES | B11: 1535869 | C11: 1655105 | D11: =+C11-B11 -> 119236 | E11: =+D11/B11*100 -> 7.763422531
A12: MUJERES | B12: 1542452 | C12: 1667224 | D12: 124772 | E12: =+D12/B12*100 -> 8.089198238
D13: 0
A14: SAN JOSÉ | B14: 1063061 | C14: 1114779 | D14: 51718 | E14: =+D14/B14*100 -> 4.865007746
A15: HOMBRES | B15: 518312 | C15: 543289 | D15: 24977 | E15: =+D15/B15*100 -> 4.818912161
A16: MUJERES | B16: 544749 | C16: 571490 | D16: 26741 | E16: =+D16/B16*100 -> 4.908866285
D17: 0
A18: ALAJUELA | B18: 577493 | C18: 630990 | D18: 53497 | E18: =+D18/B18*100 -> 9.26366207
A19: HOMBRES | B19: 291277 | C19: 318070 | D19: 26793 | E19: =+D19/B19*100 -> 9.198460572
A20: MUJERES | B20: 286216 | C20: 312920 | D20: 26704 | E20: =+D20/B20*100 -> 9.330016491
D21: 0
A22: CARTAGO | B22: 359985 | C22: 387905 | D22: 27920 | E22: =+D22/B22*100 -> 7.755878717
A23: HOMBRES | B23: 179449 | C23: 192700 | D23: 13251 | E23: =+D23/B23*100 -> 7.38427074
A24: MUJERES | B24: 180536 | C24: 195205 | D24: 14669 | E24: =+D24/B24*100 -> 8.125249258
D25: 0
A26: HEREDIA | B26: 306901 | C26: 332859 | D26: 25958 | E26: =+D26/B26*100 -> 8.458102124
A27: HOMBRES | B27: 151098 | C27: 163675 | D27: 12577 | E27: =+D27/B27*100 -> 8.323736912
A28: MUJERES | B28: 155803 | C28: 169184 | D28: 13381 | E28: =+D28/B28*100 -> 8.588409723
D29: 0
A30: GUANACASTE | B30: 221688 | C30: 240637 | D30: 18949 | E30: =+D30/B30*100 -> 8.547598427
A31: HOMBRES | B31: 112201 | C31: 121354 | D31: 9153 | E31: =+D31/B31*100 -> 8.157681304
A32: MUJERES | B32: 109487 | C32: 119283 | D32: 9796 | E32: =+D32/B32*100 -> 8.947180944
D33: 0
A34: PUNTARENAS | B34: 287254 | C34: 310662 | D34: 23408 | E34: =+D34/B34*100 -> 8.148885655
A35: HOMBRES | B35: 147881 | C35: 159033 | D35: 11152 | E35: =+D35/B35*100 -> 7.541198666
A36: MUJERES | B36: 139373 | C36: 151629 | D36: 12256 | E36: =+D36/B36*100 -> 8.793668788
D37: 0
A38: LIMÓN | B38: 249285 | C38: 272633 | D38: 23348 | E38: =+D38/B38*100 -> 9.365986722
A39: HOMBRES | B39: 129143 | C39: 140456 | D39: 11313 | E39: =+D39/B39*100 -> 8.760056681
A40: MUJERES | B40: 120142 | C40: 132177 | D40: 12035 | E40: =+D40/B40*100 -> 10.01731285
D41: 0
A42: EN EL EXTRANJERO 1/ | B42: 12654 | C42: 31864 | D42: 19210 | E42: =+D42/B42*100 -> 151.8097044
A43: HOMBRES | B43: 6508 | C43: 16528 | D43: 10020 | E43: =+D43/B43*100 -> 153.9643516
A44: MUJERES | B44: 6146 | C44: 15336 | D44: 9190 | E44: =+D44/B44*100 -> 149.5281484
A47: 1/ Costarricenses inscritos(as) que pueden ejercer el voto en extranjero para designar los puestos de Presidencia y Vicepresidencias, así como en consultas populares de orden nacional, según el artículo 187 del Código Electoral.
A48: Fuente: Sección Padrón Electoral del Tribunal Supremo de Elecciones.

Sheet G1
K4: 2014 | L4: 2018
J6: EXTRANJERO | K6: =+'1'!B42 -> 12654 | L6: 31864
J7: GUANACASTE | K7: =+'1'!B30 -> 221688 | L7: 240637
J8: LIMÓN | K8: =+'1'!B38 -> 249285 | L8: 272633
J9: PUNTARENAS | K9: =+'1'!B34 -> 287254 | L9: 310662
J10: HEREDIA | K10: =+'1'!B26 -> 306901 | L10: 332859
J11: CARTAGO | K11: =+'1'!B22 -> 359985 | L11: 387905
J12: ALAJUELA | K12: =+'1'!B18 -> 577493 | L12: 630990
J13: SAN JOSÉ | K13: =+'1'!B14 -> 1063061 | L13: 1114779
L15: =SUM(L6:L13) -> 3322329
A45: Fuente: Cuadro 1.

Sheet 2
A2: CUADRO 2
A3: COSTA RICA: PADRÓN NACIONAL ELECTORAL, POR SEXO, SEGÚN PROVINCIA, CANTÓN
A4: Y EXTRANJERO, FEBRERO DE 2014 Y 2018
A6: PROVINCIA, CANTÓN Y EXTRANJERO | B6: PADRÓN NACIONAL ELECTORAL
B7: FEBRERO 2014 | E7: FEBRERO 2018
B8: TOTAL | C8: HOMBRES | D8: MUJERES | E8: TOTAL | F8: HOMBRES | G8: MUJERES
A10: COSTA RICA | B10: =SUM(C10:D10) -> 3078321 | C10: =SUM(C11:C18) -> 1535869 | D10: =SUM(D11:D18) -> 1542452 | E10: =SUM(E11:E18) -> 3322329 | F10: 1655105 | G10: 1667224
A11: SAN JOSÉ | B11: =SUM(C11:D11) -> 1063061 | C11: 518312 | D11: 544749 | E11: =SUM(F11:G11) -> 1114779 | F11: =+F19 -> 543289 | G11: =+G19 -> 571490
A12: ALAJUELA | B12: =SUM(C12:D12) -> 577493 | C12: 291277 | D12: 286216 | E12: =SUM(F12:G12) -> 630990 | F12: =+F40 -> 318070 | G12: =+G40 -> 312920
A13: CARTAGO | B13: 359985 | C13: 179449 | D13: 180536 | E13: 387905 | F13: =+F56 -> 192700 | G13: =+G56 -> 195205
A14: HEREDIA | B14: 306901 | C14: 151098 | D14: 155803 | E14: 332859 | F14: =+F65 -> 163675 | G14: =+G65 -> 169184
A15: GUANACASTE | B15: 221688 | C15: 112201 | D15: 109487 | E15: 240637 | F15: =+F76 -> 121354 | G15: =+G76 -> 119283
A16: PUNTARENAS | B16: 287254 | C16: 147881 | D16: 139373 | E16: 310662 | F16: =+F88 -> 159033 | G16: =+G88 -> 151629
A17: LIMÓN | B17: 249285 | C17: 129143 | D17: 120142 | E17: 272633 | F17: =+F100 -> 140456 | G17: =+G100 -> 132177
A18: EXTRANJERO | B18: 12654 | C18: 6508 | D18: 6146 | E18: 31864 | F18: =+F107 -> 16528 | G18: =+G107 -> 15336
A19: SAN JOSÉ | B19: 1063061 | C19: 518312 | D19: 544749 | E19: 1114779 | F19: 543289 | G19: 571490
A20: SAN JOSÉ | B20: 228847 | C20: 110114 | D20: 118733 | E20: 234558 | F20: 113514 | G20: 121044
A21: ESCAZÚ | B21: 43354 | C21: 21195 | D21: 22159 | E21: 46971 | F21: 22957 | G21: 24014
A22: DESAMPARADOS | B22: 152242 | C22: 74550 | D22: 77692 | E22: 160243 | F22: 78427 | G22: 81816
A23: PURISCAL | B23: 26459 | C23: 13322 | D23: 13137 | E23: 28424 | F23: 14235 | G23: 14189
A24: TARRAZÚ | B24: 11458 | C24: 5814 | D24: 5644 | E24: 12188 | F24: 6119 | G24: 6069
A25: ASERRÍ | B25: 40321 | C25: 20123 | D25: 20198 | E25: 42853 | F25: 21439 | G25: 21414
A26: MORA | B26: 19190 | C26: 9521 | D26: 9669 | E26: 21361 | F26: 10503 | G26: 10858
A27: GOICOECHEA | B27: 87701 | C27: 41925 | D27: 45776 | E27: 90058 | F27: 43176 | G27: 46882
A28: SANTA ANA | B28: 31041 | C28: 15246 | D28: 15795 | E28: 35074 | F28: 17130 | G28: 17944
A29: ALAJUELITA | B29: 47597 | C29: 23554 | D29: 24043 | E29: 50373 | F29: 24920 | G29: 25453
A30: VÁZQUEZ DE CORONADO | B30: 49673 | C30: 24016 | D30: 25657 | E30: 53496 | F30: 25783 | G30: 27713
A31: ACOSTA | B31: 15551 | C31: 8044 | D31: 7507 | E31: 16608 | F31: 8504 | G31: 8104
A32: TIBÁS | B32: 55540 | C32: 26143 | D32: 29397 | E32: 55965 | F32: 26235 | G32: 29730
A33: MORAVIA | B33: 42357 | C33: 20301 | D33: 22056 | E33: 44209 | F33: 21149 | G33: 23060
A34: MONTES DE OCA | B34: 41489 | C34: 19500 | D34: 21989 | E34: 42391 | F34: 19898 | G34: 22493
A35: TURRUBARES | B35: 4375 | C35: 2280 | D35: 2095 | E35: 4593 | F35: 2358 | G35: 2235
A36: DOTA | B36: 5193 | C36: 2610 | D36: 2583 | E36: 5566 | F36: 2786 | G36: 2780
A37: CURRIDABAT | B37: 46270 | C37: 22273 | D37: 23997 | E37: 48859 | F37: 23440 | G37: 25419
A38: PÉREZ ZELEDÓN | B38: 105670 | C38: 53322 | D38: 52348 | E38: 111779 | F38: 56046 | G38: 55733
A39: LEÓN CORTÉS | B39: 8733 | C39: 4459 | D39: 4274 | E39: 9210 | F39: 4670 | G39: 4540
A40: ALAJUELA | B40: 577493 | C40: 291277 | D40: 286216 | E40: 630990 | F40: 318070 | G40: 312920
A41: ALAJUELA | B41: 185688 | C41: 93494 | D41: 92194 | E41: 201480 | F41: 101525 | G41: 99955
A42: SAN RAMÓN | B42: 58067 | C42: 28929 | D42: 29138 | E42: 63586 | F42: 31682 | G42: 31904
A43: GRECIA | B43: 55007 | C43: 27426 | D43: 27581 | E43: 59285 | F43: 29510 | G43: 29775
A44: SAN MATEO | B44: 4044 | C44: 2100 | D44: 1944 | E44: 4602 | F44: 2370 | G44: 2232
A45: ATENAS | B45: 18923 | C45: 9486 | D45: 9437 | E45: 20429 | F45: 10228 | G45: 10201
A46: NARANJO | B46: 29894 | C46: 14815 | D46: 15079 | E46: 31782 | F46: 15775 | G46: 16007
A47: PALMARES | B47: 27132 | C47: 13436 | D47: 13696 | E47: 28973 | F47: 14326 | G47: 14647
A48: POÁS | B48: 19747 | C48: 9940 | D48: 9807 | E48: 21821 | F48: 10913 | G48: 10908
A49: OROTINA | B49: 14116 | C49: 7035 | D49: 7081 | E49: 15594 | F49: 7829 | G49: 7765
A50: SAN CARLOS | B50: 97702 | C50: 49938 | D50: 47764 | E50: 108240 | F50: 55144 | G50: 53096
A51: ALFARO RUIZ | B51: 8490 | C51: 4259 | D51: 4231 | E51: 9056 | F51: 4469 | G51: 4587
A52: VALVERDE VEGA | B52: 13710 | C52: 6818 | D52: 6892 | E52: 14668 | F52: 7312 | G52: 7356
A53: UPALA | B53: 24597 | C53: 12821 | D53: 11776 | E53: 28352 | F53: 14765 | G53: 13587
A54: LOS CHILES | B54: 10457 | C54: 5621 | D54: 4836 | E54: 12152 | F54: 6524 | G54: 5628
A55: GUATUSO | B55: 9919 | C55: 5159 | D55: 4760 | E55: 10970 | F55: 5698 | G55: 5272
A56: CARTAGO | B56: 359985 | C56: 179449 | D56: 180536 | E56: 387905 | F56: 192700 | G56: 195205
A57: CARTAGO | B57: 113463 | C57: 56296 | D57: 57167 | E57: 121426 | F57: 59857 | G57: 61569
A58: PARAÍSO | B58: 43000 | C58: 21389 | D58: 21611 | E58: 46757 | F58: 23197 | G58: 23560
A59: LA UNIÓN | B59: 64441 | C59: 31956 | D59: 32485 | E59: 70313 | F59: 34646 | G59: 35667
A60: JIMÉNEZ | B60: 11308 | C60: 5836 | D60: 5472 | E60: 12064 | F60: 6158 | G60: 5906
A61: TURRIALBA | B61: 54654 | C61: 27475 | D61: 27179 | E61: 57210 | F61: 28541 | G61: 28669
A62: ALVARADO | B62: 9484 | C62: 4788 | D62: 4696 | E62: 10590 | F62: 5295 | G62: 5295
A63: OREAMUNO | B63: 33361 | C63: 16365 | D63: 16996 | E63: 36202 | F63: 17817 | G63: 18385
A64: EL GUARCO | B64: 30274 | C64: 15344 | D64: 14930 | E64: 33343 | F64: 17189 | G64: 16154
A65: HEREDIA | B65: 306901 | C65: 151098 | D65: 155803 | E65: 332859 | F65: 163675 | G65: 169184
A66: HEREDIA | B66: 90600 | C66: 43399 | D66: 47201 | E66: 96661 | F66: 46371 | G66: 50290
A67: BARVA | B67: 30088 | C67: 14747 | D67: 15341 | E67: 32786 | F67: 16058 | G67: 16728
A68: SANTO DOMINGO | B68: 32559 | C68: 16038 | D68: 16521 | E68: 34421 | F68: 16941 | G68: 17480
A69: SANTA BÁRBARA | B69: 24726 | C69: 12278 | D69: 12448 | E69: 26746 | F69: 13268 | G69: 13478
A70: SAN RAFAEL | B70: 32186 | C70: 15986 | D70: 16200 | E70: 35395 | F70: 17629 | G70: 17766
A71: SAN ISIDRO | B71: 14503 | C71: 7235 | D71: 7268 | E71: 16081 | F71: 8055 | G71: 8026
A72: BELÉN | B72: 17266 | C72: 8510 | D72: 8756 | E72: 18745 | F72: 9226 | G72: 9519
A73: FLORES | B73: 15087 | C73: 7390 | D73: 7697 | E73: 16683 | F73: 8087 | G73: 8596
A74: SAN PABLO | B74: 20119 | C74: 9754 | D74: 10365 | E74: 21950 | F74: 10596 | G74: 11354
A75: SARAPIQUÍ | B75: 29767 | C75: 15761 | D75: 14006 | E75: 33391 | F75: 17444 | G75: 15947
A76: GUANACASTE | B76: 221688 | C76: 112201 | D76: 109487 | E76: 240637 | F76: 121354 | G76: 119283
A77: LIBERIA | B77: 41245 | C77: 20723 | D77: 20522 | E77: 44938 | F77: 22492 | G77: 22446
A78: NICOYA | B78: 38300 | C78: 19245 | D78: 19055 | E78: 40987 | F78: 20606 | G78: 20381
A79: SANTA CRUZ | B79: 37832 | C79: 19323 | D79: 18509 | E79: 41107 | F79: 20895 | G79: 20212
A80: BAGACES | B80: 12446 | C80: 6320 | D80: 6126 | E80: 13686 | F80: 6876 | G80: 6810
A81: CARRILLO | B81: 22180 | C81: 11268 | D81: 10912 | E81: 24283 | F81: 12280 | G81: 12003
A82: CAÑAS | B82: 18440 | C82: 9272 | D82: 9168 | E82: 19476 | F82: 9750 | G82: 9726
A83: ABANGARES | B83: 12801 | C83: 6492 | D83: 6309 | E83: 13610 | F83: 6933 | G83: 6677
A84: TILARÁN | B84: 14132 | C84: 7079 | D84: 7053 | E84: 15049 | F84: 7514 | G84: 7535
A85: NANDAYURE | B85: 7979 | C85: 4134 | D85: 3845 | E85: 8464 | F85: 4341 | G85: 4123
A86: LA CRUZ | B86: 10846 | C86: 5518 | D86: 5328 | E86: 13023 | F86: 6593 | G86: 6430
A87: HOJANCHA | B87: 5487 | C87: 2827 | D87: 2660 | E87: 6014 | F87: 3074 | G87: 2940
A88: PUNTARENAS | B88: 287254 | C88: 147881 | D88: 139373 | E88: 310662 | F88: 159033 | G88: 151629
A89: PUNTARENAS | B89: 82240 | C89: 42269 | D89: 39971 | E89: 86571 | F89: 44277 | G89: 42294
A90: ESPARZA | B90: 20599 | C90: 10214 | D90: 10385 | E90: 22598 | F90: 11197 | G90: 11401
A91: BUENOS AIRES | B91: 29985 | C91: 15711 | D91: 14274 | E91: 31975 | F91: 16618 | G91: 15357
A92: MONTES DE ORO | B92: 9616 | C92: 4807 | D92: 4809 | E92: 10241 | F92: 5115 | G92: 5126
A93: OSA | B93: 20090 | C93: 10649 | D93: 9441 | E93: 22210 | F93: 11678 | G93: 10532
A94: AGUIRRE | B94: 18025 | C94: 9561 | D94: 8464 | E94: 19595 | F94: 10367 | G94: 9228
A95: GOLFITO | B95: 27210 | C95: 14223 | D95: 12987 | E95: 29563 | F95: 15292 | G95: 14271
A96: COTO BRUS | B96: 27667 | C96: 13980 | D96: 13687 | E96: 29923 | F96: 15075 | G96: 14848
A97: PARRITA | B97: 10844 | C97: 5604 | D97: 5240 | E97: 12052 | F97: 6225 | G97: 5827
A98: CORREDORES | B98: 31122 | C98: 15640 | D98: 15482 | E98: 34163 | F98: 17044 | G98: 17119
A99: GARABITO | B99: 9856 | C99: 5223 | D99: 4633 | E99: 11771 | F99: 6145 | G99: 5626
A100: LIMÓN | B100: 249285 | C100: 129143 | D100: 120142 | E100: 272633 | F100: 140456 | G100: 132177
A101: LIMÓN | B101: 64961 | C101: 32762 | D101: 32199 | E101: 68866 | F101: 34537 | G101: 34329
A102: POCOCÍ | B102: 83344 | C102: 43586 | D102: 39758 | E102: 92004 | F102: 47930 | G102: 44074
A103: SIQUIRRES | B103: 37389 | C103: 19658 | D103: 17731 | E103: 40171 | F103: 20896 | G103: 19275
A104: TALAMANCA | B104: 17572 | C104: 9254 | D104: 8318 | E104: 20870 | F104: 10891 | G104: 9979
A105: MATINA | B105: 19837 | C105: 10370 | D105: 9467 | E105: 21862 | F105: 11387 | G105: 10475
A106: GUÁCIMO | B106: 26182 | C106: 13513 | D106: 12669 | E106: 28860 | F106: 14815 | G106: 14045
A107: EXTRANJERO | B107: 12654 | C107: 6508 | D107: 6146 | E107: 31864 | F107: 16528 | G107: 15336
A110: Fuente: Sección Padrón Electoral del Tribunal Supremo de Elecciones.

Sheet 3
A2: CUADRO 3
A3: COSTA RICA: PADRÓN NACIONAL ELECTORAL, POR PROVINCIA Y EXTRANJERO, SEGÚN SEXO
A4: Y GRUPOS DE EDAD, ELECCIONES 4 DE FEBRERO DE 2018
A6: SEXO Y GRUPOS DE EDAD | B6: TOTAL | C6: PROVINCIA | J6: EXTRANJERO
C7: SAN JOSÉ | D7: ALAJUELA | E7: CARTAGO | F7: HEREDIA | G7: GUANACASTE | H7: PUNTARENAS | I7: LIMÓN
A9: COSTA RICA | B9: 3322329 | C9: 1114779 | D9: 630990 | E9: 387905 | F9: 332859 | G9: 240637 | H9: 310662 | I9: 272633 | J9: 31864
A10: 18 - 19 | B10: 205366 | C10: 63583 | D10: 40845 | E10: 23841 | F10: 19740 | G10: 15631 | H10: 20695 | I10: 20022 | J10: 1009
A11: 20 - 24 | B11: 311459 | C11: 98021 | D11: 60742 | E11: 36245 | F11: 29537 | G11: 23474 | H11: 31083 | I11: 30050 | J11: 2307
A12: 25 - 29 | B12: 396691 | C12: 129613 | D12: 77499 | E12: 47303 | F12: 38376 | G12: 28698 | H12: 37621 | I12: 34763 | J12: 2818
A13: 30 - 34 | B13: 386044 | C13: 126623 | D13: 74312 | E13: 45383 | F13: 38517 | G13: 27587 | H13: 36624 | I13: 32947 | J13: 4051
A14: 35 - 39 | B14: 339146 | C14: 114027 | D14: 62453 | E14: 39470 | F14: 35790 | G14: 24396 | H14: 31556 | I14: 26912 | J14: 4542
A15: 40 - 44 | B15: 284275 | C15: 93200 | D15: 51959 | E15: 34105 | F15: 29897 | G15: 20597 | H15: 26988 | I15: 23559 | J15: 3970
A16: 45 - 49 | B16: 270844 | C16: 88389 | D16: 50782 | E16: 32801 | F16: 27354 | G16: 19584 | H16: 25787 | I16: 22731 | J16: 3416
A17: 50 - 54 | B17: 275810 | C17: 92557 | D17: 52970 | E17: 32924 | F17: 27801 | G17: 19543 | H17: 25391 | I17: 21495 | J17: 3129
A18: 55 - 59 | B18: 245970 | C18: 85877 | D18: 46729 | E18: 28522 | F18: 25070 | G18: 17124 | H18: 21826 | I18: 18387 | J18: 2435
A19: 60 - 64 | B19: 196503 | C19: 70507 | D19: 35956 | E19: 22130 | F19: 20240 | G19: 13820 | H19: 17425 | I19: 14730 | J19: 1695
A20: 65 - 69 | B20: 143510 | C20: 52748 | D20: 26155 | E20: 15715 | F20: 14708 | G20: 10094 | H20: 12623 | I20: 10317 | J20: 1150
A21: 70 - 74 | B21: 102295 | C21: 37908 | D21: 19333 | E21: 11365 | F21: 10144 | G21: 7311 | H21: 8831 | I21: 6788 | J21: 615
A22: 75 - 79 | B22: 71175 | C22: 25877 | D22: 13828 | E22: 7993 | F22: 6790 | G22: 5436 | H22: 6365 | I22: 4554 | J22: 332
A23: 80 - 84 | B23: 47599 | C23: 17936 | D23: 8943 | E23: 5330 | F23: 4558 | G23: 3592 | H23: 4151 | I23: 2888 | J23: 201
A24: 85 - 89 | B24: 28649 | C24: 11226 | D24: 5284 | E24: 3075 | F24: 2739 | G24: 2254 | H24: 2375 | I24: 1569 | J24: 127
A25: 90 Y MÁS | B25: 16993 | C25: 6687 | D25: 3200 | E25: 1703 | F25: 1598 | G25: 1496 | H25: 1321 | I25: 921 | J25: 67
A26: HOMBRES | B26: 1655105 | C26: 543289 | D26: 318070 | E26: 192700 | F26: 163675 | G26: 121354 | H26: 159033 | I26: 140456 | J26: 16528
A27: 18 - 19 | B27: 104460 | C27: 32250 | D27: 20876 | E27: 12104 | F27: 10070 | G27: 7899 | H27: 10557 | I27: 10192 | J27: 512
A28: 20 - 24 | B28: 159087 | C28: 49778 | D28: 31352 | E28: 18519 | F28: 15047 | G28: 12027 | H28: 15865 | I28: 15376 | J28: 1123
A29: 25 - 29 | B29: 202185 | C29: 65686 | D29: 40108 | E29: 24162 | F29: 19578 | G29: 14499 | H29: 19006 | I29: 17733 | J29: 1413
A30: 30 - 34 | B30: 195677 | C30: 63684 | D30: 38238 | E30: 22995 | F30: 19444 | G30: 13983 | H30: 18501 | I30: 16580 | J30: 2252
A31: 35 - 39 | B31: 170884 | C31: 57336 | D31: 31886 | E31: 19720 | F31: 17868 | G31: 12263 | H31: 15842 | I31: 13425 | J31: 2544
A32: 40 - 44 | B32: 142862 | C32: 46616 | D32: 26088 | E32: 16960 | F32: 14867 | G32: 10357 | H32: 13758 | I32: 12016 | J32: 2200
A33: 45 - 49 | B33: 135157 | C33: 43369 | D33: 25384 | E33: 16059 | F33: 13520 | G33: 9923 | H33: 13266 | I33: 11767 | J33: 1869
A34: 50 - 54 | B34: 136973 | C34: 45108 | D34: 26304 | E34: 16314 | F34: 13468 | G34: 9853 | H34: 13081 | I34: 11236 | J34: 1609
A35: 55 - 59 | B35: 121188 | C35: 40775 | D35: 23301 | E35: 14020 | F35: 12075 | G35: 8718 | H35: 11373 | I35: 9693 | J35: 1233
A36: 60 - 64 | B36: 95855 | C36: 32917 | D36: 17907 | E36: 10737 | F36: 9568 | G36: 7000 | H36: 9051 | I36: 7912 | J36: 763
A37: 65 - 69 | B37: 69012 | C37: 23880 | D37: 12923 | E37: 7465 | F37: 6838 | G37: 5090 | H37: 6654 | I37: 5640 | J37: 522
A38: 70 - 74 | B38: 48785 | C38: 17032 | D38: 9398 | E38: 5418 | F38: 4703 | G38: 3575 | H38: 4710 | I38: 3690 | J38: 259
A39: 75 - 79 | B39: 33166 | C39: 11148 | D39: 6568 | E39: 3796 | F39: 3039 | G39: 2686 | H39: 3357 | I39: 2454 | J39: 118
A40: 80 - 84 | B40: 21107 | C40: 7202 | D40: 4071 | E40: 2392 | F40: 1940 | G40: 1761 | H40: 2147 | I40: 1536 | J40: 58
A41: 85 - 89 | B41: 12077 | C41: 4278 | D41: 2327 | E41: 1362 | F41: 1068 | G41: 1055 | H41: 1177 | I41: 776 | J41: 34
A42: 90 Y MÁS | B42: 6630 | C42: 2230 | D42: 1339 | E42: 677 | F42: 582 | G42: 665 | H42: 688 | I42: 430 | J42: 19
A43: MUJERES | B43: 1667224 | C43: 571490 | D43: 312920 | E43: 195205 | F43: 169184 | G43: 119283 | H43: 151629 | I43: 132177 | J43: 15336
A44: 18 - 19 | B44: 100906 | C44: 31333 | D44: 19969 | E44: 11737 | F44: 9670 | G44: 7732 | H44: 10138 | I44: 9830 | J44: 497
A45: 20 - 24 | B45: 152372 | C45: 48243 | D45: 29390 | E45: 17726 | F45: 14490 | G45: 11447 | H45: 15218 | I45: 14674 | J45: 1184
A46: 25 - 29 | B46: 194506 | C46: 63927 | D46: 37391 | E46: 23141 | F46: 18798 | G46: 14199 | H46: 18615 | I46: 17030 | J46: 1405
A47: 30 - 34 | B47: 190367 | C47: 62939 | D47: 36074 | E47: 22388 | F47: 19073 | G47: 13604 | H47: 18123 | I47: 16367 | J47: 1799
A48: 35 - 39 | B48: 168262 | C48: 56691 | D48: 30567 | E48: 19750 | F48: 17922 | G48: 12133 | H48: 15714 | I48: 13487 | J48: 1998
A49: 40 - 44 | B49: 141413 | C49: 46584 | D49: 25871 | E49: 17145 | F49: 15030 | G49: 10240 | H49: 13230 | I49: 11543 | J49: 1770
A50: 45 - 49 | B50: 135687 | C50: 45020 | D50: 25398 | E50: 16742 | F50: 13834 | G50: 9661 | H50: 12521 | I50: 10964 | J50: 1547
A51: 50 - 54 | B51: 138837 | C51: 47449 | D51: 26666 | E51: 16610 | F51: 14333 | G51: 9690 | H51: 12310 | I51: 10259 | J51: 1520
A52: 55 - 59 | B52: 124782 | C52: 45102 | D52: 23428 | E52: 14502 | F52: 12995 | G52: 8406 | H52: 10453 | I52: 8694 | J52: 1202
A53: 60 - 64 | B53: 100648 | C53: 37590 | D53: 18049 | E53: 11393 | F53: 10672 | G53: 6820 | H53: 8374 | I53: 6818 | J53: 932
A54: 65 - 69 | B54: 74498 | C54: 28868 | D54: 13232 | E54: 8250 | F54: 7870 | G54: 5004 | H54: 5969 | I54: 4677 | J54: 628
A55: 70 - 74 | B55: 53510 | C55: 20876 | D55: 9935 | E55: 5947 | F55: 5441 | G55: 3736 | H55: 4121 | I55: 3098 | J55: 356
A56: 75 - 79 | B56: 38009 | C56: 14729 | D56: 7260 | E56: 4197 | F56: 3751 | G56: 2750 | H56: 3008 | I56: 2100 | J56: 214
A57: 80 - 84 | B57: 26492 | C57: 10734 | D57: 4872 | E57: 2938 | F57: 2618 | G57: 1831 | H57: 2004 | I57: 1352 | J57: 143
A58: 85 - 89 | B58: 16572 | C58: 6948 | D58: 2957 | E58: 1713 | F58: 1671 | G58: 1199 | H58: 1198 | I58: 793 | J58: 93
A59: 90 Y MÁS | B59: 10363 | C59: 4457 | D59: 1861 | E59: 1026 | F59: 1016 | G59: 831 | H59: 633 | I59: 491 | J59: 48
A62: Fuente: Padrón Electoral del Tribunal Supremo de Elecciones.

Sheet G2
I4: HOMBRES | J4: MUJERES
I5: =+'3'!B27 -> 104460 | J5: =+'3'!B44*-1 -> -100906 | K5: 18 - 19 | L5: 18 - 19
I6: =+'3'!B28 -> 159087 | J6: =+'3'!B45*-1 -> -152372 | K6: 20 - 24 | L6: 20 - 24
I7: =+'3'!B29 -> 202185 | J7: =+'3'!B46*-1 -> -194506 | K7: 25 - 29 | L7: 25 - 29
I8: =+'3'!B30 -> 195677 | J8: =+'3'!B47*-1 -> -190367 | K8: 30 - 34 | L8: 30 - 34
I9: =+'3'!B31 -> 170884 | J9: =+'3'!B48*-1 -> -168262 | K9: 35 - 39 | L9: 35 - 39
I10: =+'3'!B32 -> 142862 | J10: =+'3'!B49*-1 -> -141413 | K10: 40 - 44 | L10: 40 - 44
I11: =+'3'!B33 -> 135157 | J11: =+'3'!B50*-1 -> -135687 | K11: 45 - 49 | L11: 45 - 49
I12: =+'3'!B34 -> 136973 | J12: =+'3'!B51*-1 -> -138837 | K12: 50 - 54 | L12: 50 - 54
I13: =+'3'!B35 -> 121188 | J13: =+'3'!B52*-1 -> -124782 | K13: 55 - 59 | L13: 55 - 59
I14: =+'3'!B36 -> 95855 | J14: =+'3'!B53*-1 -> -100648 | K14: 60 - 64 | L14: 60 - 64
I15: =+'3'!B37 -> 69012 | J15: =+'3'!B54*-1 -> -74498 | K15: 65 - 69 | L15: 65 - 69
I16: =+'3'!B38 -> 48785 | J16: =+'3'!B55*-1 -> -53510 | K16: 70 - 74 | L16: 70 - 74
I17: =+'3'!B39 -> 33166 | J17: =+'3'!B56*-1 -> -38009 | K17: 75 - 79 | L17: 75 - 79
I18: =+'3'!B40 -> 21107 | J18: =+'3'!B57*-1 -> -26492 | K18: 80 - 84 | L18: 80 - 84
I19: =+'3'!B41 -> 12077 | J19: =+'3'!B58*-1 -> -16572 | K19: 85 - 90 | L19: 85 Y MÁS
I20: =+'3'!B42 -> 6630 | J20: =+'3'!B59*-1 -> -10363 | K20: 90 Y MÁS
I22: =SUM(I5:I20) -> 1655105 | J22: =SUM(J5:J20) -> -1667224
J24: =+I22-J22 -> 3322329
A46: Fuente: Cuadro 3.

Sheet 4
A2: CUADRO 4
A3: COSTA RICA: ELECTORADO EN EL PADRÓN INSCRITO EN EL EXTRANJERO1/
A4: POR SEXO, SEGÚN CONTINENTE Y PAÍS
A5: ELECCIONES 4 DE FEBRERO 2018
A7: Continente y país | B7: Total | D7: Hombres | F7: Mujeres
B8: Absoluto | C8: % | D8: Absoluto | E8: % | F8: Absoluto | G8: %
A10: Total | B10: =B12+B37+B50+B59 -> 31864 | C10: =B10/B$10*100 -> 100 | D10: =D12+D37+D50+D59 -> 16528 | E10: =D10/D$10*100 -> 100 | F10: =F12+F37+F50+F59 -> 15336 | G10: =F10/F$10*100 -> 100
A12: América | B12: =D12+F12 -> 28307 | C12: =B12/B$10*100 -> 88.83693196 | D12: =SUM(D13:D35) -> 14876 | E12: =D12/D$10*100 -> 90.00484027 | F12: =SUM(F13:F35) -> 13431 | G12: =F12/F$10*100 -> 87.57824726
A13: Estados Unidos | B13: 22384 | C13: 70.24855636 | D13: 11994 | E13: 72.56776379 | F13: 10390 | G13: 67.74908712
A14: Canadá | B14: 996 | C14: 3.125784584 | D14: 560 | E14: 3.388189739 | F14: 436 | G14: 2.842983829
A15: México | B15: 883 | C15: 2.771152398 | D15: 391 | E15: 2.365682478 | F15: 492 | G15: 3.208137715
A16: Panamá | B16: 733 | C16: 2.300401707 | D16: 333 | E16: 2.014762827 | F16: 400 | G16: 2.608242045
A17: Nicaragua | B17: 507 | C17: 1.591137334 | D17: 265 | E17: 1.603339787 | F17: 242 | G17: 1.577986437
A18: Guatemala | B18: 434 | C18: 1.362038664 | D18: 180 | E18: 1.089060987 | F18: 254 | G18: 1.656233698
A19: Venezuela | B19: 390 | C19: 1.223951795 | D19: 179 | E19: 1.083010649 | F19: 211 | G19: 1.375847679
A20: Colombia | B20: 352 | C20: 1.104694954 | D20: 164 | E20: 0.9922555663 | F20: 188 | G20: 1.225873761
A21: El Salvador | B21: 286 | C21: 0.8975646498 | D21: 123 | E21: 0.7441916747 | F21: 163 | G21: 1.062858633
A22: Chile | B22: 232 | C22: 0.7280944012 | D22: 116 | E22: 0.701839303 | F22: 116 | G22: 0.756390193
A23: Honduras | B23: 228 | C23: 0.7155410495 | D23: 123 | E23: 0.7441916747 | F23: 105 | G23: 0.6846635368
A24: Argentina | B24: 225 | C24: 0.7061260357 | D24: 109 | E24: 0.6594869313 | F24: 116 | G24: 0.756390193
A25: Perú | B25: 159 | C25: 0.4989957319 | D25: 82 | E25: 0.4961277832 | F25: 77 | G25: 0.5020865936
A26: Ecuador | B26: 142 | C26: 0.4456439869 | D26: 68 | E26: 0.4114230397 | F26: 74 | G26: 0.4825247783
A27: República Dominicana | B27: 116 | C27: 0.3640472006 | D27: 64 | E27: 0.3872216844 | F27: 52 | G27: 0.3390714658
A28: Brasil | B28: 91 | C28: 0.2855887522 | D28: 52 | E28: 0.3146176186 | F28: 39 | G28: 0.2543035994
A29: Cuba | B29: 43 | C29: 0.1349485313 | D29: 18 | E29: 0.1089060987 | F29: 25 | G29: 0.1630151278
A30: Bolivia | B30: 39 | C30: 0.1223951795 | D30: 19 | E30: 0.1149564376 | F30: 20 | G30: 0.1304121022
A31: Paraguay | B31: 29 | C31: 0.09101180015 | D31: 20 | E31: 0.1210067764 | F31: 9 | G31: 0.05868544601
A32: Uruguay | B32: 20 | C32: 0.06276675872 | D32: 13 | E32: 0.07865440465 | F32: 7 | G32: 0.04564423579
A33: Belice | B33: 9 | C33: 0.02824504143 | D33: 2 | E33: 0.01210067764 | F33: 7 | G33: 0.04564423579
A34: Trinidad y Tobago | B34: 6 | C34: 0.01883002762 | D34: 1 | E34: 0.006050338819 | F34: 5 | G34: 0.03260302556
A35: Jamaica | B35: 3 | C35: 0.009415013809 | D35: 0 | E35: 0 | F35: 3 | G35: 0.01956181534
A37: Europa | B37: =D37+F37 -> 3000 | C37: =B37/B$10*100 -> 9.415013809 | D37: =SUM(D38:D48) -> 1381 | E37: =D37/D$10*100 -> 8.355517909 | F37: =SUM(F38:F48) -> 1619 | G37: =F37/F$10*100 -> 10.55685968
A38: España | B38: 789 | C38: 2.476148632 | D38: 378 | E38: 2.287028074 | F38: 411 | G38: 2.679968701
A39: Alemania | B39: 481 | C39: 1.509540547 | D39: 279 | E39: 1.68804453 | F39: 202 | G39: 1.317162233
A40: Francia | B40: 371 | C40: 1.164323374 | D40: 148 | E40: 0.8954501452 | F40: 223 | G40: 1.45409494
A41: Suiza | B41: 298 | C41: 0.935224705 | D41: 122 | E41: 0.7381413359 | F41: 176 | G41: 1.1476265
A42: Reino Unido | B42: 295 | C42: 0.9258096912 | D42: 128 | E42: 0.7744433688 | F42: 167 | G42: 1.088941054
A43: Italia | B43: 251 | C43: 0.787722822 | D43: 86 | E43: 0.5203291384 | F43: 165 | G43: 1.075899844
A44: Holanda | B44: 225 | C44: 0.7061260357 | D44: 96 | E44: 0.5808325266 | F44: 129 | G44: 0.8411580595
A45: Bélgica | B45: 147 | C45: 0.4613356766 | D45: 70 | E45: 0.4235237173 | F45: 77 | G45: 0.5020865936
A46: Austria | B46: 102 | C46: 0.3201104695 | D46: 48 | E46: 0.2904162633 | F46: 54 | G46: 0.3521126761
A47: Rusia | B47: 39 | C47: 0.1223951795 | D47: 25 | E47: 0.1512584705 | F47: 14 | G47: 0.09128847157
A48: Turquía | B48: 2 | C48: 0.006276675872 | D48: 1 | E48: 0.006050338819 | F48: 1 | G48: 0.006520605112
A50: Asia | B50: =D50+F50 -> 434 | C50: =B50/B$10*100 -> 1.362038664 | D50: =SUM(D51:D57) -> 208 | E50: =D50/D$10*100 -> 1.258470474 | F50: =SUM(F51:F57) -> 226 | G50: =F50/F$10*100 -> 1.473656755
A51: China | B51: =D51+F51 -> 142 | C51: =B51/B$10*100 -> 0.4456439869 | D51: 73 | E51: =D51/D$10*100 -> 0.4416747338 | F51: 69 | G51: =F51/F$10*100 -> 0.4499217527
A52: Israel | B52: 90 | C52: 0.2824504143 | D52: 39 | E52: 0.2359632139 | F52: 51 | G52: 0.3325508607
A53: Japón | B53: 79 | C53: 0.247928697 | D53: 34 | E53: 0.2057115198 | F53: 45 | G53: 0.29342723
A54: Singapur | B54: 42 | C54: 0.1318101933 | D54: 21 | E54: 0.1270571152 | F54: 21 | G54: 0.1369327074
A55: Corea | B55: 33 | C55: 0.1035651519 | D55: 15 | E55: 0.09075508228 | F55: 18 | G55: 0.117370892
A56: Qatar | B56: 39 | C56: 0.1223951795 | D56: 20 | E56: 0.1210067764 | F56: 19 | G56: 0.1238914971
A57: India | B57: 9 | C57: 0.02824504143 | D57: 6 | E57: 0.03630203291 | F57: 3 | G57: 0.01956181534
A59: Oceanía | B59: =D59+F59 -> 123 | C59: =B59/B$10*100 -> 0.3860155662 | D59: =SUM(D60) -> 63 | E59: =D59/D$10*100 -> 0.3811713456 | F59: =SUM(F60) -> 60 | G59: =F59/F$10*100 -> 0.3912363067
A60: Australia | B60: =D60+F60 -> 123 | C60: =B60/B$10*100 -> 0.3860155662 | D60: 63 | E60: =D60/D$10*100 -> 0.3811713456 | F60: 60 | G60: =F60/F$10*100 -> 0.3912363067
A63: 1/ Costarricenses inscritos(as) que pueden ejercer el voto en extranjero para designar los puestos de Presidencia y Vicepresidencias, así como en consultas populares de orden nacional, según el artículo 187 del Código Electoral.
A64: Fuente: Sección Padrón Electoral del Tribunal Supremo de Elecciones.

Sheet 5
A2: CUADRO 5
A3: COSTA RICA: ELECTORADO EN EL PADRÓN INSCRITO EN EL EXTRANJERO1/
A4: POR SEXO, SEGÚN CONSULADO, ELECCIONES 4 DE FEBRERO 2018
A6: Continente y país | B6: Total | D6: Hombres | F6: Mujeres
B7: Absoluto | C7: % | D7: Absoluto | E7: % | F7: Absoluto | G7: %
A9: Total | B9: =SUM(B11:B62) -> 31864 | C9: =B9/B$9*100 -> 100 | D9: =SUM(D11:D62) -> 16528 | E9: =D9/D$9*100 -> 100 | F9: =SUM(F11:F62) -> 15336 | G9: =F9/F$9*100 -> 100
A11: NUEVA YORK | B11: =D11+F11 -> 8674 | C11: =B11/B$9*100 -> 27.22194326 | D11: 5214 | E11: =D11/D$9*100 -> 31.5464666 | F11: 3460 | G11: =F11/F$9*100 -> 22.56129369
A12: LOS ÁNGELES | B12: 3545 | C12: 11.12540798 | D12: 1617 | E12: 9.78339787 | F12: 1928 | G12: 12.57172666
A13: MIAMI | B13: 3408 | C13: 10.69545569 | D13: 1644 | E13: 9.946757018 | F13: 1764 | G13: 11.50234742
A14: ATLANTA | B14: 2300 | C14: 7.218177253 | D14: 1198 | E14: 7.248305905 | F14: 1102 | G14: 7.185706834
A15: HOUSTON | B15: 1845 | C15: 5.790233492 | D15: 941 | E15: 5.693368829 | F15: 904 | G15: 5.894627021
A16: WASHINGTON | B16: 1841 | C16: 5.777680141 | D16: 975 | E16: 5.899080348 | F16: 866 | G16: 5.646844027
A17: MÉXICO | B17: 883 | C17: 2.771152398 | D17: 391 | E17: 2.365682478 | F17: 492 | G17: 3.208137715
A18: MADRID | B18: 789 | C18: 2.476148632 | D18: 378 | E18: 2.287028074 | F18: 411 | G18: 2.679968701
A19: CHICAGO | B19: 771 | C19: 2.419658549 | D19: 405 | E19: 2.450387222 | F19: 366 | G19: 2.386541471
A20: CIUDAD DE PANAMÁ | B20: 564 | C20: 1.770022596 | D20: 261 | E20: 1.579138432 | F20: 303 | G20: 1.975743349
A21: TORONTO | B21: 543 | C21: 1.704117499 | D21: 307 | E21: 1.857454017 | F21: 236 | G21: 1.538862806
A22: BERLÍN | B22: 481 | C22: 1.509540547 | D22: 279 | E22: 1.68804453 | F22: 202 | G22: 1.317162233
A23: OTTAWA | B23: 453 | C23: 1.421667085 | D23: 253 | E23: 1.530735721 | F23: 200 | G23: 1.304121022
A24: MANAGUA | B24: 440 | C24: 1.380868692 | D24: 236 | E24: 1.427879961 | F24: 204 | G24: 1.330203443
A25: GUATEMALA | B25: 434 | C25: 1.362038664 | D25: 180 | E25: 1.089060987 | F25: 254 | G25: 1.656233698
A26: CARACAS | B26: 390 | C26: 1.223951795 | D26: 179 | E26: 1.083010649 | F26: 211 | G26: 1.375847679
A27: PARÍS | B27: 371 | C27: 1.164323374 | D27: 148 | E27: 0.8954501452 | F27: 223 | G27: 1.45409494
A28: BOGOTÁ | B28: 352 | C28: 1.104694954 | D28: 164 | E28: 0.9922555663 | F28: 188 | G28: 1.225873761
A29: BERNA | B29: 298 | C29: 0.935224705 | D29: 122 | E29: 0.7381413359 | F29: 176 | G29: 1.1476265
A30: LONDRES | B30: 295 | C30: 0.9258096912 | D30: 128 | E30: 0.7744433688 | F30: 167 | G30: 1.088941054
A31: SAN SALVADOR | B31: 286 | C31: 0.8975646498 | D31: 123 | E31: 0.7441916747 | F31: 163 | G31: 1.062858633
A32: ROMA | B32: 251 | C32: 0.787722822 | D32: 86 | E32: 0.5203291384 | F32: 165 | G32: 1.075899844
A33: SANTIAGO | B33: 232 | C33: 0.7280944012 | D33: 116 | E33: 0.701839303 | F33: 116 | G33: 0.756390193
A34: TEGUCIGALPA | B34: 228 | C34: 0.7155410495 | D34: 123 | E34: 0.7441916747 | F34: 105 | G34: 0.6846635368
A35: BUENOS AIRES | B35: 225 | C35: 0.7061260357 | D35: 109 | E35: 0.6594869313 | F35: 116 | G35: 0.756390193
A36: LA HAYA | B36: 225 | C36: 0.7061260357 | D36: 96 | E36: 0.5808325266 | F36: 129 | G36: 0.8411580595
A37: DAVID | B37: 169 | C37: 0.5303791112 | D37: 72 | E37: 0.435624395 | F37: 97 | G37: 0.6324986959
A38: LIMA | B38: 159 | C38: 0.4989957319 | D38: 82 | E38: 0.4961277832 | F38: 77 | G38: 0.5020865936
A39: BRUCELAS | B39: 147 | C39: 0.4613356766 | D39: 70 | E39: 0.4235237173 | F39: 77 | G39: 0.5020865936
A40: QUITO | B40: 142 | C40: 0.4456439869 | D40: 68 | E40: 0.4114230397 | F40: 74 | G40: 0.4825247783
A41: SIDNEY | B41: 123 | C41: 0.3860155662 | D41: 63 | E41: 0.3811713456 | F41: 60 | G41: 0.3912363067
A42: SANTO DOMINGO | B42: 116 | C42: 0.3640472006 | D42: 64 | E42: 0.3872216844 | F42: 52 | G42: 0.3390714658
A43: BEIJING | B43: =D43+F43 -> 107 | C43: =B43/B$9*100 -> 0.3358021592 | D43: 57 | E43: =D43/D$9*100 -> 0.3448693127 | F43: 50 | G43: =F43/F$9*100 -> 0.3260302556
A44: VIENA | B44: 102 | C44: 0.3201104695 | D44: 48 | E44: 0.2904162633 | F44: 54 | G44: 0.3521126761
A45: BRASILIA | B45: 91 | C45: 0.2855887522 | D45: 52 | E45: 0.3146176186 | F45: 39 | G45: 0.2543035994
A46: TEL AVIV | B46: 90 | C46: 0.2824504143 | D46: 39 | E46: 0.2359632139 | F46: 51 | G46: 0.3325508607
A47: TOKIO | B47: 79 | C47: 0.247928697 | D47: 34 | E47: 0.2057115198 | F47: 45 | G47: 0.29342723
A48: CHINANDEGA | B48: 67 | C48: 0.2102686417 | D48: 29 | E48: 0.1754598258 | F48: 38 | G48: 0.2477829943
A49: LA HABANA | B49: 43 | C49: 0.1349485313 | D49: 18 | E49: 0.1089060987 | F49: 25 | G49: 0.1630151278
A50: SINGAPUR | B50: 42 | C50: 0.1318101933 | D50: 21 | E50: 0.1270571152 | F50: 21 | G50: 0.1369327074
A51: MOSCÚ | B51: 39 | C51: 0.1223951795 | D51: 25 | E51: 0.1512584705 | F51: 14 | G51: 0.09128847157
A52: DOHA | B52: 39 | C52: 0.1223951795 | D52: 20 | E52: 0.1210067764 | F52: 19 | G52: 0.1238914971
A53: LA PAZ | B53: 39 | C53: 0.1223951795 | D53: 19 | E53: 0.1149564376 | F53: 20 | G53: 0.1304121022
A54: SHANGHÁI | B54: 35 | C54: 0.1098418278 | D54: 16 | E54: 0.0968054211 | F54: 19 | G54: 0.1238914971
A55: SEÚL | B55: 33 | C55: 0.1035651519 | D55: 15 | E55: 0.09075508228 | F55: 18 | G55: 0.117370892
A56: ASUNCIÓN | B56: 29 | C56: 0.09101180015 | D56: 20 | E56: 0.1210067764 | F56: 9 | G56: 0.05868544601
A57: MONTEVIDEO | B57: 20 | C57: 0.06276675872 | D57: 13 | E57: 0.07865440465 | F57: 7 | G57: 0.04564423579
A58: BELMOPAN | B58: 9 | C58: 0.02824504143 | D58: 2 | E58: 0.01210067764 | F58: 7 | G58: 0.04564423579
A59: NUEVA DELHI | B59: 9 | C59: 0.02824504143 | D59: 6 | E59: 0.03630203291 | F59: 3 | G59: 0.01956181534
A60: PUERTO ESPAÑA | B60: 6 | C60: 0.01883002762 | D60: 1 | E60: 0.006050338819 | F60: 5 | G60: 0.03260302556
A61: KINGSTON | B61: 3 | C61: 0.009415013809 | D61: 0 | E61: 0 | F61: 3 | G61: 0.01956181534
A62: ANKARA | B62: 2 | C62: 0.006276675872 | D62: 1 | E62: 0.006050338819 | F62: 1 | G62: 0.006520605112
A65: 1/ Costarricenses inscritos(as) que pueden ejercer el voto en extranjero para designar los puestos de Presidencia y Vicepresidencias, así como en consultas populares de orden nacional, según el artículo 187 del Código Electoral.
A66: Fuente: Sección Padrón Electoral del Tribunal Supremo de Elecciones.

Sheet 6
A2: CUADRO 6
A3: COSTA RICA: TOTAL DE ELECTORES NATURALIZADOS, POR PAÍS DE ORIGEN
A4: SEGÚN SEXO Y GRUPOS DE EDAD, ELECCIONES 4 DE FEBRERO DE 2018
A6: SEXO Y GRUPOS DE EDAD | B6: PAÍS DE ORIGEN
B7: Total | C7: Nicaragua | D7: Colombia | E7: El Salvador | F7: Cuba | G7: China | H7: Perú | I7: Panamá | J7: República Dominicana | K7: Estados Unidos | L7: Resto de países
A9: COSTA RICA | B9: =SUM(C9:L9) -> 61668 | C9: 31166 | D9: 8089 | E9: 3938 | F9: 2421 | G9: 2134 | H9: 1879 | I9: 1612 | J9: =+J19+J29 -> 1380 | K9: =+K19+K29 -> 1249 | L9: 7800
A10: 18 - 19 | B10: =SUM(C10:L10) -> 620 | C10: 226 | D10: 247 | E10: 15 | F10: 21 | G10: 9 | H10: 15 | I10: 10 | J10: =+J20+J30 -> 20 | K10: 9 | L10: 48
A11: 20 - 29 | B11: 3680 | C11: 1820 | D11: 874 | E11: 64 | F11: 173 | G11: 151 | H11: 84 | I11: 27 | J11: 141 | K11: 33 | L11: 313
A12: 30 - 39 | B12: 11222 | C12: 6350 | D12: 1843 | E12: 410 | F12: 279 | G12: 402 | H12: 326 | I12: 126 | J12: 338 | K12: 112 | L12: 1036
A13: 40 - 49 | B13: 15779 | C13: 7989 | D13: 2348 | E13: 999 | F13: 618 | G13: 541 | H13: 501 | I13: 342 | J13: 503 | K13: 243 | L13: 1695
A14: 50 - 59 | B14: 12791 | C14: 5927 | D14: 1709 | E14: 955 | F14: 619 | G14: 383 | H14: 470 | I14: 439 | J14: 297 | K14: 279 | L14: 1713
A15: 60 - 69 | B15: 8831 | C15: 3961 | D15: 737 | E15: 908 | F15: 366 | G15: 329 | H15: 326 | I15: 329 | J15: 66 | K15: 314 | L15: 1495
A16: 70 - 79 | B16: 5233 | C16: 2669 | D16: 248 | E16: 416 | F16: 222 | G16: 196 | H16: 115 | I16: 212 | J16: 13 | K16: 195 | L16: 947
A17: 80 - 89 | B17: 2742 | C17: 1679 | D17: 73 | E17: 147 | F17: 93 | G17: 104 | H17: 37 | I17: 104 | J17: 2 | K17: 54 | L17: 449
A18: 90 Y MÁS | B18: 770 | C18: 545 | D18: 10 | E18: 24 | F18: 30 | G18: 19 | H18: 5 | I18: 23 | J18: 0 | K18: 10 | L18: 104
A19: HOMBRES | B19: =SUM(C19:L19) -> 27437 | C19: 12599 | D19: 3800 | E19: 1694 | F19: 1349 | G19: 1161 | H19: 999 | I19: 694 | J19: 370 | K19: =SUM(K20:K28) -> 843 | L19: =SUM(L20:L28) -> 3928
A20: 18 - 19 | B20: =SUM(C20:L20) -> 315 | C20: 99 | D20: 140 | E20: 10 | F20: 14 | G20: 6 | H20: 7 | I20: 4 | J20: 7 | K20: 8 | L20: 20
A21: 20 - 29 | B21: 1609 | C21: 692 | D21: 432 | E21: 23 | F21: 102 | G21: 93 | H21: 35 | I21: 5 | J21: 66 | K21: 14 | L21: 147
A22: 30 - 39 | B22: 4523 | C22: 2300 | D22: 839 | E22: 188 | F22: 125 | G22: 246 | H22: 158 | I22: 44 | J22: 89 | K22: 61 | L22: 473
A23: 40 - 49 | B23: 6991 | C23: 3310 | D23: 1054 | E23: 446 | F23: 334 | G23: 292 | H23: 249 | I23: 155 | J23: 91 | K23: 154 | L23: 906
A24: 50 - 59 | B24: 5698 | C24: 2362 | D24: 812 | E24: 403 | F24: 371 | G24: 189 | H24: 250 | I24: 194 | J24: 76 | K24: 185 | L24: 856
A25: 60 - 69 | B25: 3999 | C25: 1549 | D25: 347 | E25: 358 | F25: 228 | G25: 178 | H25: 199 | I25: 132 | J25: 31 | K25: 223 | L25: 754
A26: 70 - 79 | B26: 2669 | C26: 1252 | D26: 139 | E26: 198 | F26: 132 | G26: 93 | H26: 78 | I26: 106 | J26: 9 | K26: 154 | L26: 508
A27: 80 - 89 | B27: 1259 | C27: 761 | D27: 33 | E27: 61 | F27: 33 | G27: 57 | H27: 22 | I27: 42 | J27: 1 | K27: 39 | L27: 210
A28: 90 Y MÁS | B28: 374 | C28: 274 | D28: 4 | E28: 7 | F28: 10 | G28: 7 | H28: 1 | I28: 12 | J28: 0 | K28: 5 | L28: 54
A29: MUJERES | B29: =SUM(C29:L29) -> 34231 | C29: 18567 | D29: 4289 | E29: 2244 | F29: 1072 | G29: 973 | H29: 880 | I29: 918 | J29: =SUM(J30:J38) -> 1010 | K29: =SUM(K30:K38) -> 406 | L29: =SUM(L30:L38) -> 3872
A30: 18 - 19 | B30: =SUM(C30:L30) -> 305 | C30: 127 | D30: 107 | E30: 5 | F30: 7 | G30: 3 | H30: 8 | I30: 6 | J30: 13 | K30: 1 | L30: 28
A31: 20 - 29 | B31: 2071 | C31: 1128 | D31: 442 | E31: 41 | F31: 71 | G31: 58 | H31: 49 | I31: 22 | J31: 75 | K31: 19 | L31: 166
A32: 30 - 39 | B32: 6699 | C32: 4050 | D32: 1004 | E32: 222 | F32: 154 | G32: 156 | H32: 168 | I32: 82 | J32: 249 | K32: 51 | L32: 563
A33: 40 - 49 | B33: 8788 | C33: 4679 | D33: 1294 | E33: 553 | F33: 284 | G33: 249 | H33: 252 | I33: 187 | J33: 412 | K33: 89 | L33: 789
A34: 50 - 59 | B34: 7093 | C34: 3565 | D34: 897 | E34: 552 | F34: 248 | G34: 194 | H34: 220 | I34: 245 | J34: 221 | K34: 94 | L34: 857
A35: 60 - 69 | B35: 4832 | C35: 2412 | D35: 390 | E35: 550 | F35: 138 | G35: 151 | H35: 127 | I35: 197 | J35: 35 | K35: 91 | L35: 741
A36: 70 - 79 | B36: 2564 | C36: 1417 | D36: 109 | E36: 218 | F36: 90 | G36: 103 | H36: 37 | I36: 106 | J36: 4 | K36: 41 | L36: 439
A37: 80 - 89 | B37: 1483 | C37: 918 | D37: 40 | E37: 86 | F37: 60 | G37: 47 | H37: 15 | I37: 62 | J37: 1 | K37: 15 | L37: 239
A38: 90 Y MÁS | B38: 396 | C38: 271 | D38: 6 | E38: 17 | F38: 20 | G38: 12 | H38: 4 | I38: 11 | J38: 0 | K38: 5 | L38: 50
A41: Fuente: Padrón Nacional Electoral, Tribunal Supremo de Elecciones.

Sheet 7
A2: CUADRO 7
A3: COSTA RICA: PROMEDIO, MEDIANA Y MODA DE LA EDAD DEL ELECTOR/A, POR SEXO, SEGÚN PROVINCIA
A4: CANTÓN Y EXTRANJERO, ELECCIONES 4 DE FEBRERO DE 2018
A6: PROVINCIA, CANTÓN Y EXTRANJERO | B6: TOTAL | E6: HOMBRES | H6: MUJERES
B7: PROMEDIO | C7: MEDIANA | D7: MODA | E7: PROMEDIO | F7: MEDIANA | G7: MODA | H7: PROMEDIO | I7: MEDIANA | J7: MODA
A9: COSTA RICA | B9: 42.75549772 | C9: 40 | D9: 32 | E9: 42.26774978 | F9: 39 | G9: 32 | H9: 43.23970024 | I9: 40 | J9: 28
A10: SAN JOSÉ | B10: =+B18 -> 43.61308833 | C10: =+C18 -> 41 | D10: 28 | E10: 42.71702722 | F10: 40 | G10: 28 | H10: 44.46493202 | I10: 42 | J10: 28
A11: ALAJUELA | B11: =+B39 -> 42.49719964 | C11: =+C39 -> 39 | D11: 32 | E11: =+E39 -> 42.06606407 | F11: =+F39 -> 39 | G11: 27 | H11: 42.93543078 | I11: =+I39 -> 40 | J11: 32
A12: CARTAGO | B12: =+B55 -> 42.4774236 | C12: =+C55 -> 40 | D12: 28 | E12: =+E55 -> 42.01847431 | F12: =+F55 -> 39 | G12: 27 | H12: 42.93048334 | I12: =+I55 -> 40 | J12: 28
A13: HEREDIA | B13: =+B64 -> 42.9342244 | C13: =+C64 -> 40 | D13: 32 | E13: =+E64 -> 42.24336032 | F13: =+F64 -> 39 | G13: 32 | H13: 43.60259244 | I13: =+I64 -> 41 | J13: 32
A14: GUANACASTE | B14: =+B75 -> 42.63870477 | C14: =+C75 -> 40 | D14: 21 | E14: =+E75 -> 42.49105097 | F14: =+F75 -> 40 | G14: 21 | H14: 42.78892214 | I14: =+I75 -> 40 | J14: 23
A15: PUNTARENAS | B15: =+B87 -> 42.0627209 | C15: =+C87 -> 39 | D15: 28 | E15: =+E87 -> 42.25120572 | F15: =+F87 -> 39 | G15: 22 | H15: 41.86503241 | I15: =+I87 -> 39 | J15: 28
A16: LIMÓN | B16: =+B99 -> 40.93174707 | C16: =+C99 -> 38 | D16: 21 | E16: =+E99 -> 41.22589281 | F16: =+F99 -> 38 | G16: 21 | H16: 40.61917732 | I16: =+I99 -> 37 | J16: 20
A17: EXTRANJERO | B17: =+B106 -> 42.62600427 | C17: =+C106 -> 41 | D17: 35 | E17: =+E106 -> 41.90216602 | F17: =+F106 -> 40 | G17: 35 | H17: 43.40610329 | I17: =+I106 -> 42 | J17: 32a
A18: SAN JOSÉ | B18: 43.61308833 | C18: 41 | D18: 28 | E18: 42.71702722 | F18: 40 | G18: 28 | H18: 44.46493202 | I18: 42 | J18: 28
A19: SAN JOSÉ | B19: 44.97025896 | C19: 42 | D19: 32 | E19: 43.56979756 | F19: 41 | G19: 29 | H19: 46.28359935 | I19: 44 | J19: 32
A20: ESCAZÚ | B20: 44.07632369 | C20: 42 | D20: 27 | E20: 43.18926689 | F20: 41 | G20: 28 | H20: 44.9243358 | I20: 43 | J20: 27
A21: DESAMPARADOS | B21: 42.63061101 | C21: 40 | D21: 27 | E21: 41.80418733 | F21: 39 | G21: 27 | H21: 43.42280239 | I21: 41 | J21: 28
A22: PURISCAL | B22: 43.70173093 | C22: 41 | D22: 28 | E22: 43.54380049 | F22: 41 | G22: 28 | H22: 43.86017337 | I22: 41 | J22: 28
A23: TARRAZÚ | B23: 42.08967837 | C23: 39 | D23: 26 | E23: 42.31263278 | F23: 39 | G23: 22 | H23: 41.86488713 | I23: 39 | J23: 26
A24: ASERRÍ | B24: 41.99792313 | C24: 39 | D24: 31 | E24: 41.62376977 | F24: 39 | G24: 31 | H24: 42.37251331 | I24: 40 | J24: 29
A25: MORA | B25: 43.01577641 | C25: 40 | D25: 27 | E25: 42.85765972 | F25: 40 | G25: 21 | H25: 43.16872352 | I25: 41 | J25: 29
A26: GOICOECHEA | B26: 44.24296564 | C26: 41 | D26: 28 | E26: 43.11874653 | F26: 40 | G26: 28 | H26: 45.27831577 | I26: 43 | J26: 28
A27: SANTA ANA | B27: 43.04670126 | C27: 41 | D27: 32 | E27: 42.47267951 | F27: 40 | G27: 32 | H27: 43.59468346 | I27: 41 | J27: 38
A28: ALAJUELITA | B28: 41.30381355 | C28: 38 | D28: 21 | E28: 40.61083467 | F28: 37 | G28: 21 | H28: 41.98228107 | I28: 39 | J28: 21
A29: VÁZQUEZ DE CORONADO | B29: 42.76201959 | C29: 40 | D29: 32 | E29: 41.98188729 | F29: 39 | G29: 32 | H29: 43.4878216 | I29: 41 | J29: 28
A30: ACOSTA | B30: 42.97675819 | C30: 40 | D30: 26 | E30: 43.19249765 | F30: 41 | G30: 26 | H30: 42.75037019 | I30: 40 | J30: 27
A31: TIBÁS | B31: 45.75554364 | C31: 43 | D31: 28 | E31: 44.47143129 | F31: 42 | G31: 28 | H31: 46.88869828 | I31: 45 | J31: 28
A32: MORAVIA | B32: 44.52681581 | C32: 42 | D32: 28 | E32: 43.34417703 | F32: 41 | G32: 28 | H32: 45.6114484 | I32: 43 | J32: 30a
A33: MONTES DE OCA | B33: 45.55610861 | C33: 42 | D33: 28 | E33: 44.03553121 | F33: 40 | G33: 27a | H33: 46.90125817 | I33: 45 | J33: 31
A34: TURRUBARES | B34: 43.95297191 | C34: 42 | D34: 24 | E34: 44.44571671 | F34: 43 | G34: 26 | H34: 43.43310962 | I34: 41 | J34: 28
A35: DOTA | B35: 43.50503054 | C35: 41 | D35: 23 | E35: 43.35175879 | F35: 41 | G35: 23 | H35: 43.65863309 | I35: 41 | J35: 29
A36: CURRIDABAT | B36: 44.13696555 | C36: 42 | D36: 28 | E36: 43.05204778 | F36: 40 | G36: 26 | H36: 45.13741689 | I36: 43 | J36: 28
A37: PÉREZ ZELEDÓN | B37: 41.82091448 | C37: 39 | D37: 25 | E37: 41.58716055 | F37: 38 | G37: 24 | H37: 42.0559812 | I37: 39 | J37: 25
A38: LEÓN CORTÉS | B38: 41.66221498 | C38: 38 | D38: 27 | E38: 41.6366167 | F38: 38 | G38: 27 | H38: 41.68854626 | I38: 39 | J38: 26
A39: ALAJUELA | B39: 42.49719964 | C39: 39 | D39: 32 | E39: 42.06606407 | F39: 39 | G39: 27 | H39: 42.93543078 | I39: 40 | J39: 32
A40: ALAJUELA | B40: 42.77741711 | C40: 40 | D40: 32 | E40: 42.01228269 | F40: 39 | G40: 28 | H40: 43.55456956 | I40: 41 | J40: 32
A41: SAN RAMÓN | B41: 43.11631491 | C41: 40 | D41: 27 | E41: 42.66125876 | F41: 40 | G41: 27 | H41: 43.56820461 | I41: 41 | J41: 28
A42: GRECIA | B42: 43.03491608 | C42: 40 | D42: 32 | E42: 42.57465266 | F42: 40 | G42: 27 | H42: 43.49108312 | I42: 41 | J42: 32
A43: SAN MATEO | B43: 45.59669709 | C43: 44 | D43: 22 | E43: 45.40379747 | F43: 44 | G43: 20 | H43: 45.8015233 | I43: 44 | J43: 22
A44: ATENAS | B44: 44.4555289 | C44: 42 | D44: 27 | E44: 44.07479468 | F44: 41 | G44: 31 | H44: 44.83727086 | I44: 43 | J44: 27
A45: NARANJO | B45: 42.94811529 | C45: 40 | D45: 29 | E45: 42.30307448 | F45: 39 | G45: 29 | H45: 43.58380708 | I45: 41 | J45: 31
A46: PALMARES | B46: 43.73647879 | C46: 41 | D46: 32 | E46: 43.15196147 | F46: 40 | G46: 32 | H46: 44.30818598 | I46: 42 | J46: 32
A47: POÁS | B47: 42.34810504 | C47: 39 | D47: 28 | E47: 42.02089251 | F47: 39 | G47: 28 | H47: 42.67546755 | I47: 40 | J47: 28
A48: OROTINA | B48: 43.08394254 | C48: 40 | D48: 28 | E48: 42.94060544 | F48: 40 | G48: 28 | H48: 43.22846104 | I48: 40 | J48: 33
A49: SAN CARLOS | B49: 41.11616778 | C49: 38 | D49: 31 | E49: 40.94706586 | F49: 37 | G49: 22 | H49: 41.29179223 | I49: 38 | J49: 31
A50: ALFARO RUIZ | B50: 42.92502208 | C50: 40 | D50: 26 | E50: 42.80689192 | F50: 40 | G50: 25 | H50: 43.04011336 | I50: 40 | J50: 26
A51: VALVERDE VEGA | B51: 43.01308972 | C51: 40 | D51: 27 | E51: 42.54868709 | F51: 39 | G51: 32 | H51: 43.47471452 | I51: 41 | J51: 27
A52: UPALA | B52: 40.30477568 | C52: 37 | D52: 21 | E52: 40.73342364 | F52: 37 | G52: 21 | H52: 39.83896372 | I52: 37 | J52: 23
A53: LOS CHILES | B53: 39.82216919 | C53: 36 | D53: 19 | E53: 40.42949111 | F53: 37 | G53: 19 | H53: 39.1181592 | I53: 36 | J53: 21
A54: GUATUSO | B54: 42.00501367 | C54: 39 | D54: 21 | E54: 42.54159354 | F54: 40 | G54: 20 | H54: 41.42507587 | I54: 39 | J54: 23
A55: CARTAGO | B55: 42.4774236 | C55: 40 | D55: 28 | E55: 42.01847431 | F55: 39 | G55: 27 | H55: 42.93048334 | I55: 40 | J55: 28
A56: CARTAGO | B56: 42.80593942 | C56: 40 | D56: 31 | E56: 42.05904071 | F56: 39 | G56: 27 | H56: 43.53206971 | I56: 41 | J56: 28
A57: PARAÍSO | B57: 41.92469577 | C57: 39 | D57: 28 | E57: 41.67004354 | F57: 39 | G57: 25 | H57: 42.17542445 | I57: 39 | J57: 28
A58: LA UNIÓN | B58: 41.96117361 | C58: 39 | D58: 28 | E58: 41.4307568 | F58: 39 | G58: 26 | H58: 42.47640676 | I58: 40 | J58: 23
A59: JIMÉNEZ | B59: 43.15823939 | C59: 41 | D59: 31 | E59: 43.15086067 | F59: 41 | G59: 31 | H59: 43.16593295 | I59: 41 | J59: 23a
A60: TURRIALBA | B60: 43.82854396 | C60: 41 | D60: 32 | E60: 43.65698469 | F60: 41 | G60: 29 | H60: 43.99933726 | I60: 42 | J60: 31
A61: ALVARADO | B61: 41.85439093 | C61: 39 | D61: 27 | E61: 41.88083097 | F61: 39 | G61: 27 | H61: 41.8279509 | I61: 39 | J61: 23
A62: OREAMUNO | B62: 41.84478758 | C62: 39 | D62: 24 | E62: 41.46680137 | F62: 39 | G62: 22 | H62: 42.211096 | I62: 40 | J62: 24
A63: EL GUARCO | B63: 41.46498515 | C63: 39 | D63: 28 | E63: 41.01995462 | F63: 38 | G63: 23 | H63: 41.93852916 | I63: 39 | J63: 26
A64: HEREDIA | B64: 42.9342244 | C64: 40 | D64: 32 | E64: 42.24336032 | F64: 39 | G64: 32 | H64: 43.60259244 | I64: 41 | J64: 32
A65: HEREDIA | B65: 43.05858619 | C65: 40 | D65: 31 | E65: 41.91350197 | F65: 39 | G65: 32 | H65: 44.11443627 | I65: 41 | J65: 31
A66: BARVA | B66: 42.66247789 | C66: 40 | D66: 32 | E66: 42.00479512 | F66: 39 | G66: 32 | H66: 43.29381875 | I66: 41 | J66: 32
A67: SANTO DOMINGO | B67: 44.80561285 | C67: 42 | D67: 32 | E67: 44.01670504 | F67: 42 | G67: 31 | H67: 45.57019451 | I67: 43 | J67: 29
A68: SANTA BÁRBARA | B68: 42.44892694 | C68: 40 | D68: 28 | E68: 41.9145312 | F68: 39 | G68: 27 | H68: 42.97499629 | I68: 40 | J68: 36
A69: SAN RAFAEL | B69: 42.96572962 | C69: 40 | D69: 32 | E69: 42.32622384 | F69: 40 | G69: 32 | H69: 43.60030395 | I69: 41 | J69: 32
A70: SAN ISIDRO | B70: 43.41172813 | C70: 41 | D70: 24 | E70: 42.84829299 | F70: 40 | G70: 29 | H70: 43.9771991 | I70: 42 | J70: 24
A71: BELÉN | B71: 43.72179248 | C71: 41 | D71: 31 | E71: 43.0355517 | F71: 40 | G71: 31 | H71: 44.38691039 | I71: 42 | J71: 32
A72: FLORES | B72: 43.31864773 | C72: 41 | D72: 32 | E72: 42.63014715 | F72: 40 | G72: 28 | H72: 43.96637971 | I72: 41 | J72: 32
A73: SAN PABLO | B73: 43.06013667 | C73: 40 | D73: 31 | E73: 42.1108909 | F73: 39 | G73: 34 | H73: 43.94601022 | I73: 41 | J73: 31
A74: SARAPIQUÍ | B74: 40.32032584 | C74: 37 | D74: 23 | E74: 40.98681495 | F74: 38 | G74: 20 | H74: 39.59127109 | I74: 36 | J74: 22
A75: GUANACASTE | B75: 42.63870477 | C75: 40 | D75: 21 | E75: 42.49105097 | F75: 40 | G75: 21 | H75: 42.78892214 | I75: 40 | J75: 23
A76: LIBERIA | B76: 40.84694468 | C76: 37 | D76: 21 | E76: 40.49008536 | F76: 37 | G76: 21 | H76: 41.20453533 | I76: 38 | J76: 28
A77: NICOYA | B77: 44.21067656 | C77: 42 | D77: 32 | E77: 44.1270989 | F77: 42 | G77: 32 | H77: 44.29517688 | I77: 42 | J77: 25
A78: SANTA CRUZ | B78: 43.68209794 | C78: 41 | D78: 32 | E78: 43.45987078 | F78: 41 | G78: 25 | H78: 43.91183455 | I78: 41 | J78: 32
A79: BAGACES | B79: 42.01636709 | C79: 39 | D79: 20 | E79: 42.11634671 | F79: 40 | G79: 20 | H79: 41.9154185 | I79: 39 | J79: 20
A80: CARRILLO | B80: 42.21179426 | C80: 39 | D80: 21 | E80: 41.83485342 | F80: 39 | G80: 21 | H80: 42.59743397 | I80: 39 | J80: 24
A81: CAÑAS | B81: 41.87892791 | C81: 39 | D81: 21 | E81: 41.43928205 | F81: 38 | G81: 27 | H81: 42.31965865 | I81: 39 | J81: 25
A82: ABANGARES | B82: 43.29507715 | C82: 41 | D82: 25 | E82: 43.54824751 | F82: 41 | G82: 29 | H82: 43.03220009 | I82: 40 | J82: 25
A83: TILARÁN | B83: 44.37563958 | C83: 42 | D83: 32 | E83: 44.31754059 | F83: 42 | G83: 32 | H83: 44.43357664 | I83: 42 | J83: 23
A84: NANDAYURE | B84: 44.20333176 | C84: 42 | D84: 23 | E84: 44.35314444 | F84: 42 | G84: 21a | H84: 44.04559787 | I84: 42 | J84: 23
A85: LA CRUZ | B85: 39.07717116 | C85: 36 | D85: 22 | E85: 39.41983922 | F85: 36 | G85: 21a | H85: 38.72581649 | I85: 35 | J85: 22
A86: HOJANCHA | B86: 43.46092451 | C86: 41 | D86: 25 | E86: 43.48340924 | F86: 41 | G86: 22 | H86: 43.43741497 | I86: 41 | J86: 21
A87: PUNTARENAS | B87: 42.0627209 | C87: 39 | D87: 28 | E87: 42.25120572 | F87: 39 | G87: 22 | H87: 41.86503241 | I87: 39 | J87: 28
A88: PUNTARENAS | B88: 42.78042301 | C88: 40 | D88: 23 | E88: 42.62974005 | F88: 40 | G88: 23 | H88: 42.9381709 | I88: 40 | J88: 23
A89: ESPARZA | B89: 43.15700504 | C89: 40 | D89: 22 | E89: 42.88997053 | F89: 40 | G89: 21 | H89: 43.41926147 | I89: 41 | J89: 22a
A90: BUENOS AIRES | B90: 40.3436122 | C90: 37 | D90: 19 | E90: 40.68365628 | F90: 37 | G90: 20 | H90: 39.97564629 | I90: 36 | J90: 21
A91: MONTES DE ORO | B91: 43.57728737 | C91: 41 | D91: 25a | E91: 43.55757576 | F91: 41 | G91: 33 | H91: 43.59695669 | I91: 41 | J91: 32
A92: OSA | B92: 42.47393066 | C92: 40 | D92: 28 | E92: 42.95256037 | F92: 40 | G92: 33 | H92: 41.94322066 | I92: 39 | J92: 21
A93: AGUIRRE | B93: 41.27103853 | C93: 38 | D93: 28 | E93: 41.54413041 | F93: 39 | G93: 28 | H93: 40.96423927 | I93: 38 | J93: 28
A94: GOLFITO | B94: 42.15265704 | C94: 39 | D94: 28 | E94: 42.69840439 | F94: 40 | G94: 23 | H94: 41.5678649 | I94: 39 | J94: 28
A95: COTO BRUS | B95: 42.40156401 | C95: 40 | D95: 19 | E95: 42.57777778 | F95: 40 | G95: 19 | H95: 42.22265625 | I95: 39 | J95: 24
A96: PARRITA | B96: 42.00307003 | C96: 39 | D96: 28 | E96: 42.58088353 | F96: 40 | G96: 28 | H96: 41.38579029 | I96: 38 | J96: 23a
A97: CORREDORES | B97: 41.29810028 | C97: 38 | D97: 28 | E97: 41.81037315 | F97: 39 | G97: 23 | H97: 40.78807173 | I97: 38 | J97: 28
A98: GARABITO | B98: 39.77062272 | C98: 37 | D98: 31 | E98: 40.3462978 | F98: 38 | G98: 34 | H98: 39.14184145 | I98: 36 | J98: 31
A99: LIMÓN | B99: 40.93174707 | C99: 38 | D99: 21 | E99: 41.22589281 | F99: 38 | G99: 21 | H99: 40.61917732 | I99: 37 | J99: 20
A100: LIMÓN | B100: 41.65463364 | C100: 39 | D100: 20 | E100: 41.79181747 | F100: 39 | G100: 20 | H100: 41.5166186 | I100: 38 | J100: 23
A101: POCOCÍ | B101: 41.05042172 | C101: 38 | D101: 21 | E101: 41.28983935 | F101: 38 | G101: 23 | H101: 40.79005763 | I101: 38 | J101: 21a
A102: SIQUIRRES | B102: 40.84003386 | C102: 38 | D102: 25 | E102: 41.1875 | F102: 38 | G102: 22 | H102: 40.4633463 | I102: 37 | J102: 32
A103: TALAMANCA | B103: 39.03339722 | C103: 35 | D103: 20 | E103: 39.68441833 | F103: 36 | G103: 21 | H103: 38.32287804 | I103: 34 | J103: 20
A104: MATINA | B104: 40.02630134 | C104: 37 | D104: 20 | E104: 40.68226925 | F104: 38 | G104: 20 | H104: 39.31322196 | I104: 36 | J104: 22
A105: GUÁCIMO | B105: 41.01479556 | C105: 38 | D105: 21 | E105: 41.30489369 | F105: 39 | G105: 21 | H105: 40.70879316 | I105: 38 | J105: 20
A106: EXTRANJERO | B106: 42.62600427 | C106: 41 | D106: 35 | E106: 41.90216602 | F106: 40 | G106: 35 | H106: 43.40610329 | I106: 42 | J106: 32a
A109: Promedio: media aritmética, cociente de la suma de las observaciones entre la cantidad de observaciones, se denota  = S xi /n
A110: Mediana: valor que separa en dos grupos las observaciones, ordenadas de menor a mayor.
A111: Moda: valor de la variable que más veces se repite, es decir, el valor con mayor frecuencia absoluta.
A112: a/ Existen varias modas se tomó como el valor de la moda el de menor edad.
A113: Fuente: Sección Padrón Electoral del Tribunal Supremo de Elecciones.

Sheet 8
A2: CUADRO 8
A3: COSTA RICA: CANTONES, DISTRITOS ADMINISTRATIVOS Y ELECTORALES
A4: SEGÚN PROVINCIA, ELECCIONES 4 DE FEBRERO DE 2018
A6: PROVINCIA | B6: CANTONES | C6: DISTRITOS
C7: ADMINISTRATIVOS | D7: ELECTORALES
A9: COSTA RICA | B9: =SUM(B11:B17) -> 81 | C9: =SUM(C11:C17) -> 483 | D9: =SUM(D11:D17) -> 2072
A11: SAN JOSÉ | B11: 20 | C11: 123 | D11: 446
A12: ALAJUELA | B12: 15 | C12: 114 | D12: 439
A13: CARTAGO | B13: 8 | C13: 51 | D13: 196
A14: HEREDIA | B14: 10 | C14: 47 | D14: 116
A15: GUANACASTE | B15: 11 | C15: 59 | D15: 300
A16: PUNTARENAS | B16: 11 | C16: 60 | D16: 380
A17: LIMÓN | B17: 6 | C17: 29 | D17: 195
A20: Nota: Para voto en el extranjero se incluyen 56 consulados en 43 países.
A22: Fuente: Contraloría Electoral del Tribunal Supremo de Elecciones.

Sheet 9
A2: CUADRO 9
A3: COSTA RICA: MOVIMIENTOS A LA DIVISIÓN TERRITORIAL ELECTORAL
A4: SEGÚN PROVINCIA, ELECCIONES 4 DE FEBRERO DE 2018
A6: PROVINCIA | B6: DISTRITOS ADMINISTRATIVOS CREADOS | C6: DISTRITOS ELECTORALES
C7: CREADOS | D7: REFUNDIDOS | E7: REUBICADOS | F7: ELIMINADOS | G7: MODIFICADOS
A9: COSTA RICA | B9: =SUM(B10:B17) -> 2 | C9: =SUM(C10:C17) -> 7 | D9: 1 | E9: 14 | F9: 2 | G9: 26
A11: SAN JOSÉ | B11: 1 | C11: 1 | D11: 1 | E11: 6 | F11: 0 | G11: 3
A12: ALAJUELA | B12: 1 | C12: 1 | D12: 0 | E12: 5 | F12: 1 | G12: 5
A13: CARTAGO | B13: 0 | C13: 0 | D13: 0 | E13: 2 | F13: 0 | G13: 2
A14: HEREDIA | B14: 0 | C14: 0 | D14: 0 | E14: 0 | F14: 1 | G14: 1
A15: GUANACASTE | B15: 0 | C15: 2 | D15: 0 | E15: 0 | F15: 0 | G15: 3
A16: PUNTARENAS | B16: 0 | C16: 2 | D16: 0 | E16: 1 | F16: 0 | G16: 6
A17: LIMÓN | B17: 0 | C17: 1 | D17: 0 | E17: 0 | F17: 0 | G17: 6
A20: Fuente: Contraloría Electoral del Tribunal Supremo de Elecciones.

Sheet 10
A2: CUADRO 10
A3: COSTA RICA: CENTROS DE VOTACIÓN, JUNTAS RECEPTORAS Y
A4: CENTROS DE TRANSMISIÓN, SEGÚN PROVINCIA
A5: ELECCIONES 4 DE FEBRERO DE 2018
A7: PROVINCIA | B7: CENTROS DE VOTACIÓN1/ | C7: JUNTAS RECEPTORAS | D7: CENTROS DE TRANSMISIÓN 2/
A9: COSTA RICA | B9: =SUM(B11:B19) -> 1756 | C9: =SUM(C11:C19) -> 6612 | D9: 684
A11: SAN JOSÉ | B11: 424 | C11: 2092 | D11: 186
A12: ALAJUELA | B12: 367 | C12: 1266 | D12: 151
A13: CARTAGO | B13: 181 | C13: 740 | D13: 71
A14: HEREDIA | B14: 118 | C14: 613 | D14: 65
A15: GUANACASTE | B15: 178 | C15: 565 | D15: 41
A16: PUNTARENAS | B16: 283 | C16: 716 | D16: 59
A17: LIMÓN | B17: 160 | C17: 550 | D17: 59
A18: EXTRANJERO | B18: 45 | C18: 70 | D18: 52
A21: 1/ Datos estimados al 21 de diciembre de 2017 sujetos a modificaciones.
A22: 2/ Datos estimados al 21 de diciembre de 2017 sujetos a modificaciones.
A23: Fuente: Departamento de Progrmas Electorales y Sección de Padrón Electoral.

Sheet 11
A2: CUADRO 11
A3: COSTA RICA: JUNTAS RECEPTORAS Y ELECTORADO EN CENTROS PENITENCIARIOS, HOGARES DE ANCIANOS
A4: ZONAS INDÍGENAS Y CENTROS DE SALUD MENTAL, SEGÚN PROVINCIA
A5: ELECCIONES 4 DE FEBRERO DE 2018
A7: PROVINCIA | B7: CENTROS PENITENCIARIOS | D7: HOGARES DE ANCIANOS | F7: ZONAS INDÍGENAS | H7: CENTROS DE SALUD MENTAL
B8: JUNTAS | C8: ELECTORADO | D8: JUNTAS | E8: ELECTORADO | F8: JUNTAS | G8: ELECTORADO | H8: JUNTAS | I8: ELECTORADO
A10: COSTA RICA | B10: =SUM(B12:B19) -> 36 | C10: =SUM(C12:C19) -> 9575 | D10: 50 | E10: 2448 | F10: 93 | G10: 34939 | H10: 3 | I10: 337
A12: SAN JOSÉ | B12: 7 | C12: 2205 | D12: 14 | E12: 773 | F12: 5 | G12: 1645 | H12: 2 | I12: 252
A13: ALAJUELA | B13: 14 | C13: 3664 | D13: 9 | E13: 664 | F13: 2 | G13: 773 | H13: 0 | I13: 0
A14: CARTAGO | B14: 2 | C14: 542 | D14: 2 | E14: 164 | F14: 10 | G14: 2841 | H14: 1 | I14: 85
A15: HEREDIA | B15: 1 | C15: 69 | D15: 4 | E15: 226 | F15: 0 | G15: 0 | H15: 0 | I15: 0
A16: GUANACASTE | B16: 3 | C16: 790 | D16: 7 | E16: 189 | F16: 3 | G16: 878 | H16: 0 | I16: 0
A17: PUNTARENAS | B17: 3 | C17: 704 | D17: 9 | E17: 279 | F17: 41 | G17: 14363 | H17: 0 | I17: 0
A18: LIMÓN | B18: 6 | C18: 1601 | D18: 5 | E18: 153 | F18: 32 | G18: 14439 | H18: 0 | I18: 0
A21: Fuente: Sección Padrón Electoral, Contraloría Electoral y Programa Electoral: Equipación de condiciones para el ejercicio del voto.

Sheet 12
A2: CUADRO 12
A3: COSTA RICA: JUNTAS RECEPTORAS Y ELECTORADO EN CENTROS PENITENCIARIOS, POR SEXO
A4: SEGÚN PROVINCIA Y DISTRITO ELECTORAL, ELECCIONES 4 DE FEBRERO DE 2018
A6: PROVINCIA Y DISTRITO ELECTORAL | B6: NÚMERO DE JUNTAS | C6: ELECTORADO
C7: TOTAL | D7: HOMBRES | E7: MUJERES
A8: COSTA RICA | B8: =+B9+B14+B25+B27+B29+B33+B36 -> 36 | C8: =+C9+C14+C25+C27+C29+C33+C36 -> 9575 | D8: =+D9+D14+D25+D27+D29+D33+D36 -> 9177 | E8: =+E9+E14+E25+E27+E29+E33+E36 -> 398
A9: SAN JOSÉ | B9: =SUM(B10:B13) -> 7 | C9: 2205 | D9: 1834 | E9: 371
A10: C.P. CRISTO REY | B10: 2 | C10: 799 | D10: 799 | E10: 0
A11: C.P. SAN RAFAEL ARRIBA | B11: 1 | C11: 371 | D11: 0 | E11: 371
A12: C.P. PALMARES | B12: 3 | C12: 990 | D12: 990 | E12: 0
A13: C.P. UNIDAD DE ATENCIÓN INTEGRAL | B13: 1 | C13: 45 | D13: 45 | E13: 0
A14: ALAJUELA | B14: =SUM(B15:B24) -> 14 | C14: 3664 | D14: 3664 | E14: 0
A15: C. P. U.A.I. REYNALDO VILLALOBOS ZUÑIGA | B15: 1 | C15: 212 | D15: 212 | E15: 0
A16: C. P. LUIS PAULINO MORA MORA. | B16: 2 | C16: 517 | D16: 517 | E16: 0
A17: C.P. ÁMBITO B [MÍNIMA] | B17: 2 | C17: 557 | D17: 557 | E17: 0
A18: C.P. ÁMBITO C [MEDIANA ABIERTA] | B18: 1 | C18: 360 | D18: 360 | E18: 0
A19: C.P. ÁMBITOS D [MED CERRADA] E [MÁXIMA] | B19: 1 | C19: 379 | D19: 379 | E19: 0
A20: C.P. GERARDO RODRÍGUEZ ECHEVERRÍA | B20: 2 | C20: 721 | D20: 721 | E20: 0
A21: C.P. ADULTO MAYOR | B21: 1 | C21: 113 | D21: 113 | E21: 0
A22: C.P. ADULTO JOVEN | B22: 1 | C22: 160 | D22: 160 | E22: 0
A23: C.P. MEDIANA NUEVA Y PENSIONES | B23: 1 | C23: 137 | D23: 137 | E23: 0
A24: C.P. PALMERA [LA MARINA] | B24: 2 | C24: 508 | D24: 508 | E24: 0
A25: CARTAGO | B25: =SUM(B26) -> 2 | C25: 542 | D25: 542 | E25: 0
A26: C.P. SAN FRANCISCO | B26: 2 | C26: 542 | D26: 542 | E26: 0
A27: HEREDIA | B27: =SUM(B28) -> 1 | C27: 69 | D27: 59 | E27: 10
A28: C.P. SAN ISIDRO JUVENIL ZURQUI | B28: 1 | C28: 69 | D28: 59 | E28: 10
A29: GUANACASTE | B29: =SUM(B30:B32) -> 3 | C29: 790 | D29: 773 | E29: 17
A30: C.P. LIBERIA [MÓDULO B CASITAS] | B30: 1 | C30: 420 | D30: 403 | E30: 17
A31: C.P. LIBERIA [MÓDULO D1-D2] | B31: 1 | C31: 277 | D31: 277 | E31: 0
A32: C. P. LIBERIA (MÓDULO D3-D4) | B32: 1 | C32: 93 | D32: 93 | E32: 0
A33: PUNTARENAS | B33: =SUM(B34:B35) -> 3 | C33: 704 | D33: 704 | E33: 0
A34: C.P. EL ROBLE SENTENCIADOS | B34: 2 | C34: 634 | D34: 634 | E34: 0
A35: C.P. EL ROBLE INDICIADOS | B35: 1 | C35: 70 | D35: 70 | E35: 0
A36: LIMÓN | B36: =SUM(B37:B40) -> 6 | C36: 1601 | D36: 1601 | E36: 0
A37: C.P.RÍO BLANCO [SANDOVAL] | B37: 2 | C37: 594 | D37: 594 | E37: 0
A38: C.P. ROXANA [MÓDULOS A-B-C] | B38: 2 | C38: 543 | D38: 543 | E38: 0
A39: C.P. ROXANA [MÓDULOS D-E] | B39: 1 | C39: 422 | D39: 422 | E39: 0
A40: C.P. ROXANA (MÓDULO AGROPECUARIO) | B40: 1 | C40: 42 | D40: 42 | E40: 0
A43: Fuente: Sección Padrón Electoral, Contraloría Electoral y Programa Electoral: Equipación de condiciones para el ejercicio del voto.

Sheet 13
A2: CUADRO 13
A3: COSTA RICA: JUNTAS RECEPTORAS Y ELECTORADO EN HOGARES DE ANCIANOS, POR SEXO
A4: SEGÚN PROVINCIA Y DISTRITO ELECTORAL, ELECCIONES 4 DE FEBRERO DE 2018
A6: PROVINCIA Y DISTRITO ELECTORAL | B6: NÚMERO DE JUNTAS | C6: ELECTORADO
C7: TOTAL | D7: HOMBRES | E7: MUJERES
A9: COSTA RICA | B9: =+B10+B25+B35+B38+B43+B51+B61 -> 50 | C9: =+C10+C25+C35+C38+C43+C51+C61 -> 2448 | D9: =+D10+D25+D35+D38+D43+D51+D61 -> 1282 | E9: =+E10+E25+E35+E38+E43+E51+E61 -> 1166
A10: SAN JOSÉ | B10: =SUM(B11:B24) -> 14 | C10: =SUM(C11:C24) -> 773 | D10: =SUM(D11:D24) -> 360 | E10: 413
A11: H. A. MAGDALA | B11: 1 | C11: 60 | D11: 27 | E11: 33
A12: H.A. OFELIA CARVAJAL DE NARANJO | B12: 1 | C12: 76 | D12: 30 | E12: 46
A13: H.A. SAN CAYETANO | B13: 1 | C13: 39 | D13: 18 | E13: 21
A14: H. A. COM MORICE (LA CASONA) | B14: 1 | C14: 45 | D14: 23 | E14: 22
A15: H.A. CORAZÓN DE JESÚS | B15: 1 | C15: 38 | D15: 21 | E15: 17
A16: H.A. LOS SANTOS | B16: 1 | C16: 47 | D16: 22 | E16: 25
A17: H.A. SAN FRANCISCO DE ASÍS | B17: 1 | C17: 42 | D17: 20 | E17: 22
A18: H.A.CARLOS MARÍA ULLOA | B18: 1 | C18: 131 | D18: 58 | E18: 73
A19: H.A. CORTEZA AMARILLA-EMMANUEL | B19: 1 | C19: 17 | D19: 4 | E19: 13
A20: H.A. ACOSTA | B20: 1 | C20: 44 | D20: 23 | E20: 21
A21: H.A. CASA NAZARETH | B21: 1 | C21: 25 | D21: 14 | E21: 11
A22: H.A. MONTES DE OCA | B22: 1 | C22: 78 | D22: 33 | E22: 45
A23: H.A. CURRIDABAT | B23: 1 | C23: 44 | D23: 16 | E23: 28
A24: H.A. MONS.DELFÍN QUESADA CASTRO | B24: 1 | C24: 87 | D24: 51 | E24: 36
A25: ALAJUELA | B25: =SUM(B26:B34) -> 9 | C25: =SUM(C26:C34) -> 664 | D25: =SUM(D26:D34) -> 325 | E25: 339
A26: H.A. SANTIAGO CRESPO CALVO | B26: 1 | C26: 173 | D26: 74 | E26: 99
A27: H.A. SAN RAMÓN | B27: 1 | C27: 62 | D27: 28 | E27: 34
A28: H.A. JAFETH JIMÉNEZ MORALES | B28: 1 | C28: 90 | D28: 39 | E28: 51
A29: H.A. HORTENSIA RODRÍGUEZ S.DE B. | B29: 1 | C29: 67 | D29: 34 | E29: 33
A30: H.A. JOSÉ DEL OLMO | B30: 1 | C30: 56 | D30: 23 | E30: 33
A31: H.A. PALMARES | B31: 1 | C31: 70 | D31: 36 | E31: 34
A32: H.A. PRESB.JESÚS MARÍA VARGAS | B32: 1 | C32: 27 | D32: 16 | E32: 11
A33: H.A. SAN VICENTE DE PAÚL | B33: 1 | C33: 68 | D33: 47 | E33: 21
A34: H.A. SAN RAFAEL | B34: 1 | C34: 51 | D34: 28 | E34: 23
A35: CARTAGO | B35: =SUM(B36:B37) -> 2 | C35: =SUM(C36:C37) -> 164 | D35: =SUM(D36:D37) -> 86 | E35: 78
A36: H.A. ASILO DE LA VEJEZ | B36: 1 | C36: 104 | D36: 48 | E36: 56
A37: H.A. SAN BUENAVENTURA | B37: 1 | C37: 60 | D37: 38 | E37: 22
A38: HEREDIA | B38: =SUM(B39:B42) -> 4 | C38: =SUM(C39:C42) -> 226 | D38: =SUM(D39:D42) -> 117 | E38: 109
A39: H.A. REINA DE LOS ANGELES | B39: 1 | C39: 14 | D39: 7 | E39: 7
A40: H. A. SEÑORA DE LOS ANGELES | B40: 1 | C40: 96 | D40: 52 | E40: 44
A41: H.A.ALFREDO Y DELIA GONZÁLEZ FLORES | B41: 1 | C41: 90 | D41: 40 | E41: 50
A42: H. A. SAN AGUSTÍN | B42: 1 | C42: 26 | D42: 18 | E42: 8
A43: GUANACASTE | B43: =SUM(B44:B50) -> 7 | C43: =SUM(C44:C50) -> 189 | D43: =SUM(D44:D50) -> 112 | E43: =SUM(E44:E50) -> 77
A44: H.A. LIBERIA | B44: 1 | C44: 31 | D44: 20 | E44: 11
A45: H.A. SAN BLAS | B45: 1 | C45: 29 | D45: 15 | E45: 14
A46: H.A. NUESTRA SEÑORA DEL ROSARIO | B46: 1 | C46: 15 | D46: 8 | E46: 7
A47: H. A. MARY BLANCO | B47: 1 | C47: 25 | D47: 16 | E47: 9
A48: H.A. SAN JORGE | B48: 1 | C48: 34 | D48: 22 | E48: 12
A49: H.A. TILARÁN | B49: 1 | C49: 31 | D49: 19 | E49: 12
A50: H. A. SAGRADO CORAZON DE JESÚS | B50: 1 | C50: 24 | D50: 12 | E50: 12
A51: PUNTARENAS | B51: =SUM(B52:B60) -> 9 | C51: =SUM(C52:C60) -> 279 | D51: =SUM(D52:D60) -> 184 | E51: =SUM(E52:E60) -> 95
A52: H A MIGUEL MORENO | B52: 1 | C52: 38 | D52: 23 | E52: 15
A53: H A MARÍA INMACULADA | B53: 1 | C53: 32 | D53: 17 | E53: 15
A54: H A CARLOS VENEGAS | B54: 1 | C54: 27 | D54: 17 | E54: 10
A55: H A FRAY CASIANO DE MADRID | B55: 1 | C55: 39 | D55: 22 | E55: 17
A56: H A PALMAR SUR | B56: 1 | C56: 43 | D56: 33 | E56: 10
A57: H A PAQUITA | B57: 1 | C57: 20 | D57: 15 | E57: 5
A58: H A GOLFITO | B58: 1 | C58: 23 | D58: 18 | E58: 5
A59: H A COTO BRUS | B59: 1 | C59: 24 | D59: 17 | E59: 7
A60: H A NEILY | B60: 1 | C60: 33 | D60: 22 | E60: 11
A61: LIMÓN | B61: =SUM(B62:B66) -> 5 | C61: =SUM(C62:C66) -> 153 | D61: =SUM(D62:D66) -> 98 | E61: 55
A62: H A VÍCTOR CASCO TORRES | B62: 1 | C62: 27 | D62: 12 | E62: 15
A63: H A GUÁPILES | B63: 1 | C63: 38 | D63: 30 | E63: 8
A64: H A CARIARI | B64: 1 | C64: 54 | D64: 35 | E64: 19
A65: H A SANTA LUISA | B65: 1 | C65: 16 | D65: 8 | E65: 8
A66: H A DAVID GARRO | B66: 1 | C66: 18 | D66: 13 | E66: 5
A69: Fuente: Sección Padrón Electoral, Contraloría Electoral y Programa Electoral: Equipación de condiciones para el ejercicio del voto.

Sheet 14
A2: CUADRO 14
A3: COSTA RICA: JUNTAS RECEPTORAS Y ELECTORADO EN ZONAS INDÍGENAS, POR SEXO
A4: SEGÚN PROVINCIA Y DISTRITO ELECTORAL, ELECCIONES 4 DE FEBRERO DE 2018
A6: PROVINCIA Y DISTRITO ELECTORAL | B6: NÚMERO DE JUNTAS | C6: ELECTORADO
C7: TOTAL | D7: HOMBRES | E7: MUJERES
A9: COSTA RICA | B9: =+B10+B15+B18+B28+B31+B67 -> 93 | C9: =+C10+C15+C18+C28+C31+C67 -> 34939 | D9: =+D10+D15+D18+D28+D31+D67 -> 18366 | E9: 16573
A10: SAN JOSÉ | B10: =SUM(B11:B14) -> 5 | C10: 1645 | D10: 863 | E10: 782
A11: ZAPATÓN (SAN CARLOS) | B11: 1 | C11: 349 | D11: 190 | E11: 159
A12: BAJO REY | B12: 1 | C12: 47 | D12: 25 | E12: 22
A13: QUITIRRISI | B13: 2 | C13: 955 | D13: 506 | E13: 449
A14: CHINA KICHA | B14: 1 | C14: 294 | D14: 142 | E14: 152
A15: ALAJUELA | B15: =SUM(B16:B17) -> 2 | C15: 773 | D15: 395 | E15: 378
A16: MARGARITA | B16: 1 | C16: 448 | D16: 223 | E16: 225
A17: TONJIBE | B17: 1 | C17: 325 | D17: 172 | E17: 153
A18: CARTAGO | B18: =SUM(B19:B27) -> 10 | C18: 2841 | D18: 1431 | E18: 1410
A19: GRANO DE ORO O XARA | B19: 2 | C19: 806 | D19: 391 | E19: 415
A20: SIMIRIÑAC [JACUY] | B20: 1 | C20: 291 | D20: 147 | E20: 144
A21: DUCLAC [ALTO PACUARE ARRIBA] | B21: 1 | C21: 234 | D21: 115 | E21: 119
A22: JAKI [CAPILLA DOS CHIRRIPÓ ARRIBA] | B22: 1 | C22: 348 | D22: 181 | E22: 167
A23: BOLORI ÑAC [CAPILLA UNO] | B23: 1 | C23: 314 | D23: 166 | E23: 148
A24: NIMARI-ÑAC [RÍO PEJE] | B24: 1 | C24: 217 | D24: 111 | E24: 106
A25: NAMALDI | B25: 1 | C25: 108 | D25: 51 | E25: 57
A26: TSIPIRI [QUEBRADA PLATANILLO] | B26: 1 | C26: 497 | D26: 256 | E26: 241
A27: JACBATA (CERRO AZUL) | B27: 1 | C27: 26 | D27: 13 | E27: 13
A28: GUANACASTE | B28: =SUM(B29:B30) -> 3 | C28: 878 | D28: 454 | E28: 424
A29: MATAMBUGUITO | B29: 1 | C29: 190 | D29: 97 | E29: 93
A30: MATAMBU | B30: 2 | C30: 688 | D30: 357 | E30: 331
A31: PUNTARENAS | B31: =SUM(B32:B66) -> 41 | C31: 14363 | D31: 7645 | E31: 6718
A32: SALITRE | B32: 1 | C32: 432 | D32: 229 | E32: 203
A33: BORUCA | B33: 2 | C33: 1202 | D33: 637 | E33: 565
A34: LAS PILAS | B34: 1 | C34: 139 | D34: 84 | E34: 55
A35: COLINAS [MAÍZ DE LOS UVA] | B35: 1 | C35: 341 | D35: 185 | E35: 156
A36: CURRÉ | B36: 1 | C36: 378 | D36: 195 | E36: 183
A37: LA DANTA O CONCEPCIÓN | B37: 1 | C37: 425 | D37: 226 | E37: 199
A38: UJARRÁS | B38: 2 | C38: 895 | D38: 469 | E38: 426
A39: BAJO LAS BRISAS | B39: 2 | C39: 791 | D39: 408 | E39: 383
A40: TÉRRABA | B40: 1 | C40: 568 | D40: 301 | E40: 267
A41: SAN RAFAEL DE CABAGRA | B41: 2 | C41: 836 | D41: 433 | E41: 403
A42: BIJAGUAL | B42: 1 | C42: 460 | D42: 255 | E42: 205
A43: CAJÓN | B43: 1 | C43: 246 | D43: 149 | E43: 97
A44: GUAGARAL | B44: 1 | C44: 234 | D44: 130 | E44: 104
A45: MAÍZ DE BORUCA | B45: 1 | C45: 344 | D45: 192 | E45: 152
A46: CHÁNGUENA [LA FILA] | B46: 1 | C46: 261 | D46: 150 | E46: 111
A47: PILÓN | B47: 1 | C47: 464 | D47: 259 | E47: 205
A48: LAS VEGAS DE RÍO CHÁNGUENA | B48: 1 | C48: 103 | D48: 60 | E48: 43
A49: LA BONGA | B49: 1 | C49: 268 | D49: 155 | E49: 113
A50: SAN VICENTE [UPIAV-2] | B50: 1 | C50: 132 | D50: 71 | E50: 61
A51: PARAÍSO | B51: 1 | C51: 220 | D51: 119 | E51: 101
A52: PUENTE DE SALITRE | B52: 1 | C52: 339 | D52: 179 | E52: 160
A53: SHAMBA | B53: 1 | C53: 187 | D53: 107 | E53: 80
A54: LA PEÑA DE BURICA | B54: 1 | C54: 201 | D54: 112 | E54: 89
A55: GUAYMÍ DE BURICA | B55: 1 | C55: 216 | D55: 120 | E55: 96
A56: ALTO CONTE [MOLO DUBTDO] | B56: 1 | C56: 282 | D56: 153 | E56: 129
A57: PROGRESO DE CONTEBURICA | B57: 1 | C57: 221 | D57: 122 | E57: 99
A58: SAN GERARDO | B58: 1 | C58: 113 | D58: 63 | E58: 50
A59: LA CASONA [GUAYMÍ] | B59: 2 | C59: 1049 | D59: 527 | E59: 522
A60: BAJO LOS INDIOS | B60: 1 | C60: 261 | D60: 134 | E60: 127
A61: ABROJO NORTE [VEGAS DE ABROJO NORTE] | B61: 1 | C61: 643 | D61: 328 | E61: 315
A62: BARRIO NUEVO DE VERACRUZ O COLORADITO SUR | B62: 2 | C62: 812 | D62: 405 | E62: 407
A63: CARACOL DE LA VACA | B63: 1 | C63: 427 | D63: 223 | E63: 204
A64: VEREH | B64: 1 | C64: 401 | D64: 205 | E64: 196
A65: VEGAS DEL RÍO LA VACA [NIBIRIBOTDA] | B65: 1 | C65: 189 | D65: 111 | E65: 78
A66: ABROJO-MONTEZUMA | B66: 1 | C66: 283 | D66: 149 | E66: 134
A67: LIMÓN | B67: =SUM(B68:B84) -> 32 | C67: 14439 | D67: 7578 | E67: 6861
A68: VESTA | B68: 1 | C68: 490 | D68: 273 | E68: 217
A69: BOCUARE | B69: 1 | C69: 230 | D69: 134 | E69: 96
A70: ALTO CWEN | B70: 1 | C70: 417 | D70: 218 | E70: 199
A71: XIQIARI | B71: 1 | C71: 562 | D71: 285 | E71: 277
A72: SINOLI | B72: 1 | C72: 202 | D72: 102 | E72: 100
A73: PACUARITO | B73: 2 | C73: 694 | D73: 375 | E73: 319
A74: BRATSI [BAMBÚ O DON DIEGO] | B74: 1 | C74: 449 | D74: 219 | E74: 230
A75: AMUBRI | B75: 4 | C75: 1911 | D75: 990 | E75: 921
A76: COROMA [COLOQCHA] | B76: 1 | C76: 410 | D76: 219 | E76: 191
A77: PUERTO VIEJO | B77: 3 | C77: 1557 | D77: 872 | E77: 685
A78: BRIBRÍ [FIELDS] | B78: 5 | C78: 3046 | D78: 1583 | E78: 1463
A79: SHIROLES [XIROLES] | B79: 4 | C79: 2007 | D79: 1003 | E79: 1004
A80: KATSI | B80: 2 | C80: 656 | D80: 349 | E80: 307
A81: SEPEQUE | B81: 2 | C81: 1030 | D81: 535 | E81: 495
A82: SIBUJÚ | B82: 1 | C82: 313 | D82: 174 | E82: 139
A83: BAJO TELIRE [BAJO BLEY] | B83: 1 | C83: 202 | D83: 112 | E83: 90
A84: PALMERA [CATSAQIBI] | B84: 1 | C84: 263 | D84: 135 | E84: 128
A87: Fuente: Sección Padrón Electoral, Contraloría Electoral y Programa Electoral: Equipación de condiciones para el ejercicio del voto.

Sheet 15
A2: CUADRO 15
A3: COSTA RICA: JUNTAS RECEPTORAS Y ELECTORADO EN CENTROS DE SALUD MENTAL, POR SEXO
A4: SEGÚN PROVINCIA Y DISTRITO ELECTORAL, ELECCIONES 4 DE FEBRERO DE 2018
A6: PROVINCIA Y DISTRITO ELECTORAL | B6: NÚMERO DE JUNTAS | C6: ELECTORADO
C7: TOTAL | D7: HOMBRES | E7: MUJERES
A9: COSTA RICA | B9: =+B10+B13 -> 3 | C9: =+C10+C13 -> 337 | D9: 261 | E9: 76
A10: SAN JOSÉ | B10: =SUM(B11:B12) -> 2 | C10: 252 | D10: 204 | E10: 48
A11: C.S.M. MANUEL ANTONIO CHAPUÍ | B11: 1 | C11: 122 | D11: 74 | E11: 48
A12: C.S.M. CAPEMCOL | B12: 1 | C12: 130 | D12: 130 | E12: 0
A13: CARTAGO | B13: =SUM(B14:B14) -> 1 | C13: 85 | D13: 57 | E13: 28
A14: C.S.M. ROBERTO CHACÓN PAUT | B14: 1 | C14: 85 | D14: 57 | E14: 28
A17: Fuente: Sección Padrón Electoral, Contraloría Electoral y Programa Electoral: Equipación de condiciones para el ejercicio del voto.

Sheet 16
A2: CUADRO 16
A3: COSTA RICA: PARTIDOS POLÍTICOS QUE PARTICIPAN EN LAS ELECCIONES
A4: SEGÚN ESCALA, ELECCIONES 4 DE FEBRERO 2018
A6: NOMBRE | B6: DIVISA
A8: ESCALA NACIONAL
A10: ACCESIBILIDAD SIN EXCLUSIÓN
A11: ACCIÓN CIUDADANA
A12: ALIANZA DEMÓCRATA CRISTIANA
A13: DE LOS TRABAJADORES
A14: FRENTE AMPLIO
A15: INTEGRACIÓN NACIONAL
A16: LIBERACIÓN NACIONAL
A17: LIBERAL PROGRESISTA
A18: MOVIMIENTO LIBERTARIO
A19: NUEVA GENERACIÓN
A20: PARTIDO DE LOS TRABAJADORES
A21: RENOVACIÓN COSTARRICENSE
A22: REPUBLICANO SOCIAL CRISTIANO
A23: RESTAURACIÓN NACIONAL
A24: UNIDAD SOCIAL CRISTIANA
A26: ESCALA PROVINCIAL
A29: ACTUEMOS YA (Cartago)
A30: AUTÉNTICO LIMONENSE (Limón)
A31: COMUNAL UNIDO (San José)
A32: FUERZAS UNIDAS PARA EL CAMBIO (San José)
A33: DE LOS TRANSPORTISTAS (San José)
A34: NUEVO PARTIDO SOCIALISTA (San José)
A35: PATRIA, IGUALDAD Y DEMOCRACIA (San José)
A36: RECUPERANDO VALORES (Limón)
A37: TODOS (San José)
A38: UNIÓN GUANACASTECA (Guanacaste)
A39: VAMOS (San José)
A42: Fuente: Departamento de registro de Partidos Políticos del Tribunal Supremo de Elecciones.

Sheet 17
A2: CUADRO 17
A3: COSTA RICA: MONTO PRESUPUESTADO POR EL TRIBUNAL SUPREMO DE ELECCIONES
A4: PARA LAS ELECCIONES GENERALES DE 2018, SEGÚN AÑO
A5: (CIFRAS EN COLONES)
A7: AÑO | B7: MONTO PRESUPUESTADO
A10: TOTAL | B10: =SUM(B12:B14) -> 6976281665
A12: 2016 | B12: 56304000
A13: 2017 | B13: 2887225700
A14: 2018 1/ | B14: 4032751965
A17: 1/ Para la eventualidad de tener que organizar una segunda vuelta de la elección presidencial se presupuestaron adicionalmente ¢1 614 883 200.
A18: Nota: No incluyen los montos por Deuda Politica.
A20: Fuente: Dirección Ejecutiva del Tribunal Supremo de Elecciones.

Sheet 18
A1: CUADRO 18
A2: COSTA RICA: DONACIONES REPORTADAS PARA EL PROCESO ELECTORAL 2014-20171/
A3: AL 30 DE NOVIEMBRE DE 2017
A5: AÑO | B5: MONTO
A7: TOTAL | B7: =B8+B9+B10+B11 -> 3389877538
A8: 2014 | B8: 465946535.2
A9: 2015 | B9: 431705237.2
A10: 2016 | B10: 437455246.6
A11: 2017 | B11: 2054770520
A14: Nota: Donaciones recibidas, reportadas por los partidos políticos a partir del mes de marzo de 2014.
A16: 1/ De acuerdo con los artículos 128 y 129 del Código Electoral, publicado el 2 de setiembre en el Diario Oficial La Gaceta que se prohibe la contribución de extranjeros, personas jurídicas y depositadas fuera del país.
A18: Fuente: Departamento de Financiamiento de Partidos Políticos del Tribunal Supremo de Elecciones.

Sheet 19
A2: CUADRO 19
A3: COSTA RICA: DONACIONES EN EFECTIVO REPORTADAS ANTE EL TRIBUNAL SUPREMO DE ELECCIONES
A4: SEGÚN PARTIDO POLÍTICO 1/
A5: - Cifras en colones, al 30 de noviembre de 2017 -
A6: PARTIDO POLÍTICO | B6: CICLO MUNICIPAL2/ | C6: CICLO PRESIDENCIAL | D6: CICLO PRESIDENCIAL | E6: Noviembre, 2017
C7: PERIODO NO ELECTORAL 2016-2017 3/ | D7: PERIODO ELECTORAL 2016-2017 4/
A9: TOTAL | B9: =SUM(B11:B53) -> 1374303409 | C9: =SUM(C11:C53) -> 2387500434 | D9: =SUM(D11:D53) -> 65669786.77 | E9: =SUM(E11:E53) -> 23570607.88
A11: ACCESIBILIDAD SIN EXCLUSION | B11: 2284361.06 | C11: 76627828.7 | D11: 0 | E11: 0
A12: ACCION CIUDADANA | B12: 231930029.6 | C12: 96010116.22 | D12: 9141005.15 | E12: 3775513.26
A13: ACUERDO DE ALIANZA DE QUEPOS | B13: 660000 | C13: 0 | D13: 0 | E13: 0
A14: ACTUEMOS YA | B14: 0 | C14: 1070000 | D14: 10000 | E14: 0
A15: ALIANZA DEMOCRATA CRISTIANA | B15: 8586284 | C15: 2545000 | D15: 498400 | E15: 0
A16: ALIANZA PATRIOTICA | B16: 2000000 | C16: 270000 | D16: 0 | E16: 0
A17: ALIANZA POR SAN JOSE | B17: 77616500 | C17: 8491939.23 | D17: 0 | E17: 0
A18: ALIANZA SOCIAL POR LA UNION | B18: 3555751 | C18: 101000 | D18: 0 | E18: 0
A19: AUTENTICO LIMONENSE | B19: 11454550.17 | C19: 2716000 | D19: 0 | E19: 0
A20: AUTÉNTICO SIQUIRREÑO | B20: 0 | C20: 625000 | D20: 0 | E20: 0
A21: AVANCE MONTES DE OCA | B21: 3450904 | C21: 261685 | D21: 7000 | E21: 0
A22: BARVA UNIDA | B22: 307000 | C22: 0 | D22: 0 | E22: 0
A23: COALICION ALIANZA POR BELEN | B23: 694500 | C23: 0 | D23: 0 | E23: 0
A24: COALICION GENTE MONTES DE OCA | B24: 7065573 | C24: 0 | D24: 0 | E24: 0
A25: COALICION UNIDOS POR GUATUSO | B25: 356000 | C25: 0 | D25: 0 | E25: 0
A26: CURRIDABAT SIGLO XXI | B26: 18315116 | C26: 4409241.65 | D26: 0 | E26: 0
A27: DEL SOL | B27: 12673150 | C27: 0 | D27: 0 | E27: 0
A28: DEMOCRATA | B28: 109219 | C28: 0 | D28: 0 | E28: 0
A29: ECOLOGICO COMUNAL COSTARRICENSE | B29: 0 | C29: 1391647 | D29: 0 | E29: 0
A30: FRENTE AMPLIO | B30: 180761940 | C30: 112820074.3 | D30: 11728464.56 | E30: 6790777.56
A31: FUERZA DEMOCRATICA DESAMPARADEÑA | B31: 1006720 | C31: 0 | D31: 0 | E31: 0
A32: GARABITO ECOLOGICO | B32: 3558320 | C32: 0 | D32: 0 | E32: 0
A33: INDEPENDIENTE ESCAZUCEÑO | B33: 1711000 | C33: 0 | D33: 0 | E33: 0
A34: INTEGRACION NACIONAL | B34: 1200000 | C34: 0 | D34: 2483000 | E34: 2483000
A35: LIBERACION NACIONAL | B35: 502505486.7 | C35: 1849471239 | D35: 33881617.06 | E35: 7456317.06
A36: LIBERAL PROGRESISTA | B36: 0 | C36: 0 | D36: 216300 | E36: 0
A37: MOVIMIENTO AVANCE SANTO DOMINGO | B37: 4988438.52 | C37: 2714000 | D37: 0 | E37: 0
A38: MOVIMIENTO LIBERTARIO | B38: 61145715.93 | C38: 34906014.35 | D38: 2754000 | E38: 2504000
A39: NUEVA GENERACION | B39: 38274824 | C39: 5697076.05 | D39: 648200 | E39: 0
A40: NUEVO PARTIDO SOCIALISTA | B40: 350000 | C40: 0 | D40: 0 | E40: 0
A41: PARRITA INDEPENDIENTE | B41: 670000 | C41: 0 | D41: 0 | E41: 0
A42: PROGRESO COMUNAL DESAMPARADEÑO | B42: 601001.01 | D42: 0 | E42: 0
A43: RECUPERANDO VALORES | B43: 0 | C43: 360000 | E43: 0
A44: RENOVACION CARTAGO | B44: 668883.99 | C44: 700000 | D44: 0 | E44: 0
A45: RENOVACION COSTARRICENSE | B45: 10011844.02 | C45: 15056707 | D45: 0 | E45: 0
A46: RENOVEMOS ALAJUELA | B46: 2710000 | C46: 5027831 | D46: 0 | E46: 0
A47: REPUBLICANO SOCIAL CRISTIANO | B47: 73666912.39 | C47: 20802000 | D47: 0 | E47: 0
A48: RESCATE CANTONAL LA UNION | B48: 5193886 | C48: 0 | D48: 0 | E48: 0
A49: RESTAURACION NACIONAL | B49: 10946000 | C49: 562000 | D49: 459000 | E49: 61000
A50: TODOS | B50: 0 | C50: 0 | D50: 1560000 | E50: 0
A51: TODO POR FLORES | B51: 2033000 | C51: 0 | E51: 0
A52: UNIDAD SOCIAL CRISTIANA | B52: 68485598.94 | C52: 144864035 | D52: 2282800 | E52: 500000
A53: YUNTA PROGRESISTA ESCAZUCEÑA | B53: 22754900 | C53: 0 | D53: 0 | E53: 0
A55: Notas:
A56: 1/ El detalle de cada contribuyente se puede consultar en http://www.tse.go.cr/contribuciones_partidos.htm
A57: 2/ El Ciclo Municipal abarca el periodo comprendido entre el 20 de marzo de 2014 y el 23 de marzo de 2016.
A58: 3/ El Periodo no Electoral del Ciclo Presidencia comprende del 24 de marzo de 2016 al 03 de octubre de 2017.
A59: 4/ El Periodo Electoral del Ciclo Presidencia comprende del 04 de octubre de 2017 al 21 de marzo de 2017.
A61: Fuente: Reportes de contribuciones remitidos periódicamente por los partidos políticos al Departamento de Financiamiento de Partidos Políticos.

Sheet 20
A2: CUADRO 20
A3: COSTA RICA: FISCALIZACIÓN DE LOS PARTIDOS POLÍTICOS, POR AÑO
A4: SEGÚN TIPO DE FISCALIZACIÓN 1/, AL 21 DE DICIEMBRE DE 2017
A6: TIPO DE FISCALIZACIÓN | B6: TOTAL | C6: 2014 | D6: 2015 | E6: 2016 | F6: 2017
A8: TOTAL | B8: =SUM(B9:B13) -> 378 | C8: =SUM(C9:C13) -> 35 | D8: =SUM(D9:D13) -> 89 | E8: =SUM(E9:E13) -> 124 | F8: =SUM(F9:F13) -> 130
A9: AUDITORÍA | B9: 7 | C9: 2 | D9: 2 | E9: 1 | F9: 2
A10: ANÁLISIS DE LIQUIDACIONES 2/ | B10: 150 | C10: 15 | D10: 33 | E10: 66 | F10: 36
A11: DENUNCIAS | B11: 9 | C11: 2 | D11: 1 | E11: 4 | F11: 2
A12: ESTUDIOS ESPECIALES | B12: 12 | C12: 8 | D12: 1 | E12: - | F12: 3
A13: ESTUDIOS DE ASESORÍA | B13: 200 | C13: 8 | D13: 52 | E13: 53 | F13: 87
A16: 1/ Los tipos de fiscalización que realiza el Departamento de Financiamiento de Partidos Políticos, responden a las atribuciones funcionales establecidas en el Código Electoral y el Reglamento sobre el Financiamiento de los Partidos Polítcos.
A18: 2/ En análisis de liquidaciones, se muestran los datos correspondientes a los informes emitidos. En algunas liquidaciones se emitieron dos infomes por liquidación y en otros casos en un informe se resolvió sobre varias liquidaciones de un mismo partido.
A20: Fuente: Departamento de Financiamiento de Partidos Políticos del Tribunal Supremo de Elecciones.

Sheet 21
A2: CUADRO 21
A3: COSTA RICA: COMPOSICIÓN DE LAS PAPELETAS, POR SEXO, SEGÚN
A4: TIPO DE CANDIDATURA, ELECCIONES 4 DE FEBRERO DE 2018
A5: (CIFRAS ABSOLUTAS Y RELATIVAS)
A7: CANDIDATURAS | B7: TOTAL | C7: HOMBRES | E7: MUJERES
C8: ABSOLUTO | D8: % | E8: ABSOLUTO | F8: %
A10: TOTAL | B10: =SUM(B11:B14) -> 1087 | C10: =SUM(C11:C14) -> 556 | D10: =C10/B10*100 -> 51.149954 | E10: =SUM(E11:E14) -> 531 | F10: =E10/B10*100 -> 48.850046
A11: PRESIDENCIA | B11: =+C11+E11 -> 13 | C11: =+'22'!F9 -> 12 | D11: =+C11/B11*100 -> 92.30769231 | E11: 1 | F11: =+E11/B11*100 -> 7.692307692
A12: PRIMERA VICEPRESIDENCIA | B12: 13 | C12: =+'22'!I9 -> 4 | D12: =+C12/B12*100 -> 30.76923077 | E12: 9 | F12: =+E12/B12*100 -> 69.23076923
A13: SEGUNDA VICEPRESIDENCIA | B13: 13 | C13: 9 | D13: 69.23076923 | E13: 4 | F13: 30.76923077
A14: DIPUTACIONES | B14: 1048 | C14: 531 | D14: 50.66793893 | E14: 517 | F14: 49.33206107
A17: Fuente: Departamento de Registro de Partidos Políticos del Tribunal Supremo de Elecciones.

Sheet G3
I4: CANDIDATURAS | J4: HOMBRES | K4: MUJERES
I6: TOTAL | J6: =SUM(J8:J11) -> 556 | K6: =SUM(K8:K11) -> 531
I8: DIPUTACIONES | J8: ='21'!C14 -> 531 | K8: ='21'!E14 -> 517
I9: SEGUNDA VICEPRESIDENCIA | J9: ='21'!C13 -> 9 | K9: ='21'!E13 -> 4
I10: PRIMERA VICEPRESIDENCIA | J10: ='21'!C12 -> 4 | K10: ='21'!E12 -> 9
I11: PRESIDENCIA | J11: 12 | K11: ='21'!E11 -> 1
A45: Fuente: Cuadro 21.

Sheet 22
A2: CUADRO 22
A3: COSTA RICA: CANDIDATURAS INSCRITAS A PRESIDENCIA Y VICEPRESIDENCIAS, POR SEXO
A4: SEGÚN GRUPOS DE EDAD, ELECCIONES 4 DE FEBRERO DE 2018
A6: GRUPOS DE EDAD | B6: TOTAL | E6: PRESIDENCIA | H6: 1º VICEPRESIDENCIA | K6: 2º VICEPRESIDENCIA
B7: TOTAL | C7: HOMBRES | D7: MUJERES | E7: TOTAL | F7: HOMBRES | G7: MUJERES | H7: TOTAL | I7: HOMBRES | J7: MUJERES | K7: TOTAL | L7: HOMBRES | M7: MUJERES
A9: TOTAL | B9: =SUM(B11:B18) -> 39 | C9: 25 | D9: 14 | E9: 13 | F9: 12 | G9: 1 | H9: 13 | I9: 4 | J9: 9 | K9: 13 | L9: 9 | M9: 4
A11: 30 - 34 | B11: =+E11+H11+K11 -> 5 | C11: =+F11+I11+L11 -> 2 | D11: 3 | E11: 2 | F11: 1 | G11: 1 | H11: 2 | I11: 0 | J11: 2 | K11: 1 | L11: 1 | M11: 0
A12: 35 - 39 | B12: =+E12+H12+K12 -> 4 | C12: =+F12+I12+L12 -> 3 | D12: =+G12+J12+M12 -> 1 | E12: 1 | F12: 1 | G12: 0 | H12: 1 | I12: 0 | J12: 1 | K12: 2 | L12: 2 | M12: 0
A13: 40 - 44 | B13: 8 | C13: 5 | D13: 3 | E13: 3 | F13: 3 | G13: 0 | H13: 2 | I13: 0 | J13: 2 | K13: 3 | L13: 2 | M13: 1
A14: 45 - 49 | B14: 3 | C14: 2 | D14: 1 | E14: 1 | F14: 1 | G14: 0 | H14: 0 | I14: 0 | J14: 0 | K14: 2 | L14: 1 | M14: 1
A15: 50 - 54 | B15: 2 | C15: 0 | D15: 2 | E15: 0 | F15: 0 | G15: 0 | H15: 2 | I15: 0 | J15: 2 | K15: 0 | L15: 0 | M15: 0
A16: 55 - 59 | B16: 10 | C16: 8 | D16: 2 | E16: 4 | F16: 4 | G16: 0 | H16: 1 | I16: 1 | J16: 0 | K16: 5 | L16: 3 | M16: 2
A17: 60 - 64 | B17: 5 | C17: 3 | D17: 2 | E17: 1 | F17: 1 | G17: 0 | H17: 4 | I17: 2 | J17: 2 | K17: 0 | L17: 0 | M17: 0
A18: 65 - 69 | B18: 2 | C18: 2 | D18: 0 | E18: 1 | F18: 1 | G18: 0 | H18: 1 | I18: 1 | J18: 0 | K18: 0 | L18: 0 | M18: 0
A21: Fuente: Departamento de Registro de Partidos Políticos del Tribunal Supremo de Elecciones.

Sheet 23
A2: CUADRO 23
A3: COSTA RICA: CANDIDATURAS INSCRITAS A DIPUTACIONES EN PROPIEDAD Y SUPLENCIA, POR SEXO
A4: SEGÚN GRUPOS DE EDAD, ELECCIONES 4 DE FEBRERO 2018
A6: GRUPOS DE EDAD | B6: DIPUTACIONES | E6: EN PROPIEDAD | H6: EN SUPLENCIA
B7: TOTAL | C7: HOMBRES | D7: MUJERES | E7: TOTAL | F7: HOMBRES | G7: MUJERES | H7: TOTAL | I7: HOMBRES | J7: MUJERES
A9: TOTAL | B9: =SUM(B10:B23) -> 1048 | C9: =SUM(C10:C23) -> 531 | D9: 517 | E9: 846 | F9: 429 | G9: 417 | H9: 202 | I9: 102 | J9: 100
A10: 18 - 24 | B10: 60 | C10: 35 | D10: 25 | E10: 46 | F10: 26 | G10: 20 | H10: 14 | I10: 9 | J10: 5
A11: 25 - 29 | B11: 129 | C11: 59 | D11: 70 | E11: 100 | F11: 47 | G11: 53 | H11: 29 | I11: 12 | J11: 17
A12: 30 - 34 | B12: 127 | C12: 59 | D12: 68 | E12: 106 | F12: 49 | G12: 57 | H12: 21 | I12: 10 | J12: 11
A13: 35 - 39 | B13: 117 | C13: 55 | D13: 62 | E13: 95 | F13: 45 | G13: 50 | H13: 22 | I13: 10 | J13: 12
A14: 40 - 44 | B14: 107 | C14: 51 | D14: 56 | E14: 91 | F14: 46 | G14: 45 | H14: 16 | I14: 5 | J14: 11
A15: 45 - 49 | B15: 95 | C15: 53 | D15: 42 | E15: 80 | F15: 43 | G15: 37 | H15: 15 | I15: 10 | J15: 5
A16: 50 - 54 | B16: 90 | C16: 37 | D16: 53 | E16: 71 | F16: 28 | G16: 43 | H16: 19 | I16: 9 | J16: 10
A17: 55 - 59 | B17: 128 | C17: 64 | D17: 64 | E17: 103 | F17: 53 | G17: 50 | H17: 25 | I17: 11 | J17: 14
A18: 60 - 64 | B18: 110 | C18: 68 | D18: 42 | E18: 87 | F18: 56 | G18: 31 | H18: 23 | I18: 12 | J18: 11
A19: 65 - 69 | B19: 48 | C19: 29 | D19: 19 | E19: 38 | F19: 20 | G19: 18 | H19: 10 | I19: 9 | J19: 1
A20: 70 - 74 | B20: 25 | C20: 15 | D20: 10 | E20: 20 | F20: 12 | G20: 8 | H20: 5 | I20: 3 | J20: 2
A21: 75 - 79 | B21: 7 | C21: 3 | D21: 4 | E21: 4 | F21: 1 | G21: 3 | H21: 3 | I21: 2 | J21: 1
A22: 80 - 84 | B22: 3 | C22: 2 | D22: 1 | E22: 3 | F22: 2 | G22: 1 | H22: 0 | I22: 0 | J22: 0
A23: 85 Y MÁS | B23: 2 | C23: 1 | D23: 1 | E23: 2 | F23: 1 | G23: 1 | H23: 0 | I23: 0 | J23: 0
A26: Fuente: Departamento de Registro de Partidos Políticos del Tribunal Supremo de Elecciones.

Sheet G4
L7: HOMBRES | M7: MUJERES
L9: =+'23'!C10 -> 35 | M9: =+'23'!D10*-1 -> -25 | N9: 18 - 24 | O9: 18 - 24
L10: =+'23'!C11 -> 59 | M10: =+'23'!D11*-1 -> -70 | N10: 25 - 29 | O10: 25 - 29
L11: =+'23'!C12 -> 59 | M11: =+'23'!D12*-1 -> -68 | N11: 30 - 34 | O11: 30 - 34
L12: =+'23'!C13 -> 55 | M12: =+'23'!D13*-1 -> -62 | N12: 35 - 39 | O12: 35 - 39
L13: =+'23'!C14 -> 51 | M13: =+'23'!D14*-1 -> -56 | N13: 40 - 44 | O13: 40 - 44
L14: =+'23'!C15 -> 53 | M14: =+'23'!D15*-1 -> -42 | N14: 45 - 49 | O14: 45 - 49
L15: =+'23'!C16 -> 37 | M15: =+'23'!D16*-1 -> -53 | N15: 50 - 54 | O15: 50 - 54
L16: =+'23'!C17 -> 64 | M16: =+'23'!D17*-1 -> -64 | N16: 55 - 59 | O16: 55 - 59
L17: =+'23'!C18 -> 68 | M17: =+'23'!D18*-1 -> -42 | N17: 60 - 64 | O17: 60 - 64
L18: =+'23'!C19 -> 29 | M18: =+'23'!D19*-1 -> -19 | N18: 65 - 69 | O18: 65 - 69
L19: =+'23'!C20 -> 15 | M19: =+'23'!D20*-1 -> -10 | N19: 70 - 74 | O19: 70 - 74
L20: 6 | M20: -6 | N20: 75 Y MÁS | O20: 75 Y MÁS
A49: Fuente: Cuadro 23.

Sheet 24
A2: CUADRO 24
A3: COSTA RICA: CANDIDATURAS A DIPUTACIONES EN PROPIEDAD Y SUPLENCIA, POR SEXO
A4: SEGÚN PARTIDO, ELECCIONES 4 DE FEBRERO DE 2018
A5: (CIFRAS ABSOLUTAS Y RELATIVAS)
A7: PARTIDO | B7: DIPUTACIONES | G7: EN PROPIEDAD | L7: EN SUPLENCIA
A8: PARTIDO POLITICO | B8: TOTAL | C8: HOMBRES | E8: MUJERES | G8: TOTAL | H8: HOMBRES | J8: MUJERES | L8: TOTAL | M8: HOMBRES | O8: MUJERES
B9: ABS | C9: ABS | D9: % | E9: ABS | F9: % | G9: ABS | H9: ABS | I9: % | J9: ABS | K9: % | L9: ABS | M9: ABS | N9: % | O9: ABS | P9: %
A11: TOTAL | B11: =SUM(B12:B36) -> 1048 | C11: =SUM(C12:C36) -> 531 | D11: =+C11/B11*100 -> 50.66793893 | E11: 517 | F11: =+E11/B11*100 -> 49.33206107 | G11: 846 | H11: 429 | I11: =+H11/G11*100 -> 50.70921986 | J11: 417 | K11: =+J11/G11*100 -> 49.29078014 | L11: 202 | M11: 102 | N11: =+M11/L11*100 -> 50.4950495 | O11: 100 | P11: =+O11/L11*100 -> 49.5049505
A12: ACCESIBILIDAD SIN EXCLUSIÓN | B12: 75 | C12: 37 | D12: 49.3 | E12: 38 | F12: 50.7 | G12: 57 | H12: 28 | I12: 49.1 | J12: 29 | K12: 50.9 | L12: 18 | M12: 9 | N12: 50 | O12: 9 | P12: 50
A13: ACCIÓN CIUDADANA | B13: 71 | C13: 35 | D13: 49.3 | E13: 36 | F13: 50.7 | G13: 57 | H13: 28 | I13: 49.1 | J13: 29 | K13: 50.9 | L13: 14 | M13: 7 | N13: 50 | O13: 7 | P13: 50
A14: ACTUEMOS YA | B14: 9 | C14: 5 | D14: 55.6 | E14: 4 | F14: 44.4 | G14: 7 | H14: 4 | I14: 57.1 | J14: 3 | K14: 42.9 | L14: 2 | M14: 1 | N14: 50 | O14: 1 | P14: 50
A15: ALIANZA DEMÓCRATA CRISTIANA | B15: 38 | C15: 20 | D15: 52.6 | E15: 18 | F15: 47.4 | G15: 38 | H15: 20 | I15: 52.6 | J15: 18 | K15: 47.4 | L15: 0 | M15: 0 | N15: 0 | O15: 0 | P15: 0
A16: AUTÉNTICO LIMONENSE | B16: 7 | C16: 4 | D16: 57.1 | E16: 3 | F16: 42.9 | G16: 5 | H16: 3 | I16: 60 | J16: 2 | K16: 40 | L16: 2 | M16: 1 | N16: 50 | O16: 1 | P16: 50
A17: COMUNAL UNIDO | B17: 24 | C17: 12 | D17: 50 | E17: 12 | F17: 50 | G17: 19 | H17: 10 | I17: 52.6 | J17: 9 | K17: 47.4 | L17: 5 | M17: 2 | N17: 40 | O17: 3 | P17: 60
A18: DE LOS TRABAJADORES | B18: 40 | C18: 21 | D18: 52.5 | E18: 19 | F18: 47.5 | G18: 40 | H18: 21 | I18: 52.5 | J18: 19 | K18: 47.5 | L18: 0 | M18: 0 | N18: 0 | O18: 0 | P18: 0
A19: DE LOS TRANSPORTISTAS | B19: 24 | C19: 13 | D19: 54.2 | E19: 11 | F19: 45.8 | G19: 19 | H19: 10 | I19: 52.6 | J19: 9 | K19: 47.4 | L19: 5 | M19: 3 | N19: 60 | O19: 2 | P19: 40
A20: FRENTE AMPLIO | B20: 73 | C20: 37 | D20: 50.7 | E20: 36 | F20: 49.3 | G20: 56 | H20: 29 | I20: 51.8 | J20: 27 | K20: 48.2 | L20: 17 | M20: 8 | N20: 47.1 | O20: 9 | P20: 52.9
A21: FUERZAS UNIDAS PARA EL CAMBIO | B21: 20 | C21: 11 | D21: 55 | E21: 9 | F21: 45 | G21: 15 | H21: 8 | I21: 53.3 | J21: 7 | K21: 46.7 | L21: 5 | M21: 3 | N21: 60 | O21: 2 | P21: 40
A22: INTEGRACIÓN NACIONAL | B22: 73 | C22: 36 | D22: 49.3 | E22: 37 | F22: 50.7 | G22: 57 | H22: 29 | I22: 50.9 | J22: 28 | K22: 49.1 | L22: 16 | M22: 7 | N22: 43.8 | O22: 9 | P22: 56.3
A23: LIBERACIÓN NACIONAL | B23: 74 | C23: 37 | D23: 50 | E23: 37 | F23: 50 | G23: 57 | H23: 28 | I23: 49.1 | J23: 29 | K23: 50.9 | L23: 17 | M23: 9 | N23: 52.9 | O23: 8 | P23: 47.1
A24: LIBERAL PROGRESISTA | B24: 6 | C24: 3 | D24: 50 | E24: 3 | F24: 50 | G24: 6 | H24: 3 | I24: 50 | J24: 3 | K24: 50 | L24: 0 | M24: 0 | N24: 0 | O24: 0 | P24: 0
A25: MOVIMIENTO LIBERTARIO | B25: 75 | C25: 38 | D25: 50.7 | E25: 37 | F25: 49.3 | G25: 57 | H25: 29 | I25: 50.9 | J25: 28 | K25: 49.1 | L25: 18 | M25: 9 | N25: 50 | O25: 9 | P25: 50
A26: NUEVA GENERACIÓN | B26: 70 | C26: 34 | D26: 48.6 | E26: 36 | F26: 51.4 | G26: 54 | H26: 26 | I26: 48.1 | J26: 28 | K26: 51.9 | L26: 16 | M26: 8 | N26: 50 | O26: 8 | P26: 50
A27: NUEVO PARTIDO SOCIALISTA | B27: 8 | C27: 4 | D27: 50 | E27: 4 | F27: 50 | G27: 8 | H27: 4 | I27: 50 | J27: 4 | K27: 50 | L27: 0 | M27: 0 | N27: 0 | O27: 0 | P27: 0
A28: PATRIA, IGUALDAD Y DEMOCRACIA | B28: 22 | C28: 11 | D28: 50 | E28: 11 | F28: 50 | G28: 19 | H28: 10 | I28: 52.6 | J28: 9 | K28: 47.4 | L28: 3 | M28: 1 | N28: 33.3 | O28: 2 | P28: 66.7
A29: RECUPERANDO VALORES | B29: 5 | C29: 3 | D29: 60 | E29: 2 | F29: 40 | G29: 5 | H29: 3 | I29: 60 | J29: 2 | K29: 40 | L29: 0 | M29: 0 | N29: 0 | O29: 0 | P29: 0
A30: RENOVACIÓN COSTARRICENSE | B30: 74 | C30: 38 | D30: 51.4 | E30: 36 | F30: 48.6 | G30: 57 | H30: 29 | I30: 50.9 | J30: 28 | K30: 49.1 | L30: 17 | M30: 9 | N30: 52.9 | O30: 8 | P30: 47.1
A31: REPUBLICANO SOCIAL CRISTIANO | B31: 72 | C31: 37 | D31: 51.4 | E31: 35 | F31: 48.6 | G31: 57 | H31: 29 | I31: 50.9 | J31: 28 | K31: 49.1 | L31: 15 | M31: 8 | N31: 53.3 | O31: 7 | P31: 46.7
A32: RESTAURACIÓN NACIONAL | B32: 70 | C32: 35 | D32: 50 | E32: 35 | F32: 50 | G32: 57 | H32: 28 | I32: 49.1 | J32: 29 | K32: 50.9 | L32: 13 | M32: 7 | N32: 53.8 | O32: 6 | P32: 46.2
A33: TODOS | B33: 22 | C33: 12 | D33: 54.5 | E33: 10 | F33: 45.5 | G33: 19 | H33: 10 | I33: 52.6 | J33: 9 | K33: 47.4 | L33: 3 | M33: 2 | N33: 66.7 | O33: 1 | P33: 33.3
A34: UNIDAD SOCIAL CRISTIANA | B34: 66 | C34: 33 | D34: 50 | E34: 33 | F34: 50 | G34: 57 | H34: 29 | I34: 50.9 | J34: 28 | K34: 49.1 | L34: 9 | M34: 4 | N34: 44.4 | O34: 5 | P34: 55.6
A35: UNIÓN GUANACASTECA | B35: 6 | C35: 3 | D35: 50 | E35: 3 | F35: 50 | G35: 4 | H35: 2 | I35: 50 | J35: 2 | K35: 50 | L35: 2 | M35: 1 | N35: 50 | O35: 1 | P35: 50
A36: VAMOS | B36: 24 | C36: 12 | D36: 50 | E36: 12 | F36: 50 | G36: 19 | H36: 9 | I36: 47.4 | J36: 10 | K36: 52.6 | L36: 5 | M36: 3 | N36: 60 | O36: 2 | P36: 40
A39: Fuente: Departamento de Registro de Partidos Políticos del Tribunal Supremo de Elecciones.

Sheet 25
A2: CUADRO 25
A3: COSTA RICA: EDAD PROMEDIO A FEBRERO DE LOS CANDIDATOS/AS INSCRITOS/AS A DIPUTACIONES EN PROPIEDAD Y SUPLENCIA
A4: POR SEXO, SEGÚN PARTIDO POLÍTICO, ELECCIONES 4 DE FEBRERO 2018
A6: PARTIDO POLÍTICO | B6: DIPUTACIONES | E6: EN PROPIEDAD | H6: EN SUPLENCIA
B7: TOTAL | C7: HOMBRES | D7: MUJERES | E7: TOTAL | F7: HOMBRES | G7: MUJERES | H7: TOTAL | I7: HOMBRES | J7: MUJERES
A9: TOTAL | B9: 44.81 | C9: 45.58 | D9: 44.03 | E9: 44.78 | F9: 45.44 | G9: 44.11 | H9: 44.95 | I9: 46.18 | J9: 43.7
A10: ACCESIBILIDAD SIN EXCLUSIÓN | B10: 45.17 | C10: 47.57 | D10: 42.84 | E10: 45.79 | F10: 47.61 | G10: 44.03 | H10: 43.22 | I10: 47.44 | J10: 39
A11: ACCIÓN CIUDADANA | B11: 47.38 | C11: 48.77 | D11: 46.03 | E11: 48.86 | F11: 49.07 | G11: 48.66 | H11: 41.36 | I11: 47.57 | J11: 35.14
A12: ACTUEMOS YA | B12: 37.67 | C12: 42 | D12: 32.25 | E12: 38.86 | F12: 44 | G12: 32 | H12: 33.5 | I12: 34 | J12: 33
A13: ALIANZA DEMÓCRATA CRISTIANA | B13: 37.76 | C13: 40.3 | D13: 34.94 | E13: 37.76 | F13: 40.3 | G13: 34.94 | H13: 0 | I13: 0 | J13: 0
A14: AUTÉNTICO LIMONENSE | B14: 46.29 | C14: 45.25 | D14: 47.67 | E14: 52 | F14: 50.67 | G14: 54 | H14: 32 | I14: 29 | J14: 35
A15: COMUNAL UNIDO | B15: 49.58 | C15: 51.83 | D15: 47.33 | E15: 50.79 | F15: 50.9 | G15: 50.67 | H15: 45 | I15: 56.5 | J15: 37.33
A16: DE LOS TRABAJADORES | B16: 31.23 | C16: 32.1 | D16: 30.26 | E16: 31.23 | F16: 32.1 | G16: 30.26 | H16: 0 | I16: 0 | J16: 0
A17: DE LOS TRANSPORTISTAS | B17: 50.04 | C17: 54.92 | D17: 44.27 | E17: 48.42 | F17: 54.7 | G17: 41.44 | H17: 56.2 | I17: 55.67 | J17: 57
A18: FRENTE AMPLIO | B18: 42.85 | C18: 42.03 | D18: 43.69 | E18: 43.2 | F18: 44.07 | G18: 42.26 | H18: 41.71 | I18: 34.63 | J18: 48
A19: FUERZAS UNIDAS PARA EL CAMBIO | B19: 50.1 | C19: 51.45 | D19: 48.44 | E19: 52.13 | F19: 53.13 | G19: 51 | H19: 44 | I19: 47 | J19: 39.5
A20: INTEGRACIÓN NACIONAL | B20: 47.32 | C20: 47.61 | D20: 47.03 | E20: 47.19 | F20: 46.45 | G20: 47.96 | H20: 47.75 | I20: 52.43 | J20: 44.11
A21: LIBERACIÓN NACIONAL | B21: 43.86 | C21: 42.76 | D21: 44.97 | E21: 42.63 | F21: 41.36 | G21: 43.86 | H21: 48 | I21: 47.11 | J21: 49
A22: LIBERAL PROGRESISTA | B22: 42 | C22: 37.67 | D22: 46.33 | E22: 42 | F22: 37.67 | G22: 46.33 | H22: 0 | I22: 0 | J22: 0
A23: MOVIMIENTO LIBERTARIO | B23: 45.6 | C23: 47.16 | D23: 44 | E23: 45.23 | F23: 46.62 | G23: 43.79 | H23: 46.78 | I23: 48.89 | J23: 44.67
A24: NUEVA GENERACIÓN | B24: 40.1 | C24: 40.41 | D24: 39.81 | E24: 40.22 | F24: 38.81 | G24: 41.54 | H24: 39.69 | I24: 45.63 | J24: 33.75
A25: NUEVO PARTIDO SOCIALISTA | B25: 30.38 | C25: 29.75 | D25: 31 | E25: 30.38 | F25: 29.75 | G25: 31 | H25: 0 | I25: 0 | J25: 0
A26: PATRIA, IGUALDAD Y DEMOCRACIA | B26: 53.18 | C26: 61.91 | D26: 44.45 | E26: 54.16 | F26: 62 | G26: 45.44 | H26: 47 | I26: 61 | J26: 40
A27: RECUPERANDO VALORES | B27: 49.4 | C27: 46.67 | D27: 53.5 | E27: 49.4 | F27: 46.67 | G27: 53.5 | H27: 0 | I27: 0 | J27: 0
A28: RENOVACIÓN COSTARRICENSE | B28: 48.19 | C28: 47.89 | D28: 48.5 | E28: 48.68 | F28: 47.9 | G28: 49.5 | H28: 46.53 | I28: 47.89 | J28: 45
A29: REPUBLICANO SOCIAL CRISTIANO | B29: 51.81 | C29: 50.54 | D29: 53.14 | E29: 51.91 | F29: 49.69 | G29: 54.21 | H29: 51.4 | I29: 53.63 | J29: 48.86
A30: RESTAURACIÓN NACIONAL | B30: 42.31 | C30: 42.51 | D30: 42.11 | E30: 42.14 | F30: 43.75 | G30: 40.59 | H30: 43.08 | I30: 37.57 | J30: 49.5
A31: TODOS | B31: 51.18 | C31: 49.42 | D31: 53.3 | E31: 54.37 | F31: 54.3 | G31: 54.44 | H31: 31 | I31: 25 | J31: 43
A32: UNIDAD SOCIAL CRISTIANA | B32: 46.42 | C32: 49.45 | D32: 43.39 | E32: 45.61 | F32: 49.17 | G32: 41.93 | H32: 51.56 | I32: 51.5 | J32: 51.6
A33: UNIÓN GUANACASTECA | B33: 50.67 | C33: 52 | D33: 49.33 | E33: 45 | F33: 45.5 | G33: 44.5 | H33: 62 | I33: 65 | J33: 59
A34: VAMOS | B34: 31.46 | C34: 27.75 | D34: 35.17 | E34: 31.53 | F34: 27.22 | G34: 35.4 | H34: 31.2 | I34: 29.33 | J34: 34
A37: Fuente: Departamento de Registro de Partidos Políticos del Tribunal Supremo de Elecciones.

Sheet 26
A3: CUADRO 26
A4: COSTA RICA: CANDIDATURAS INSCRITAS A DIPUTACIONES PROPIETARIAS, POR PROVINCIA Y SEXO
A5: SEGÚN POSICIÓN EN LA PAPELETA, ELECCIONES 4 DE FEBRERO 2018
A7: POSICIÓN | B7: COSTA RICA | E7: SAN JOSÉ | H7: ALAJUELA | K7: CARTAGO | N7: HEREDIA | Q7: GUANACASTE | T7: PUNTARENAS | W7: LIMÓN
B8: T | C8: H | D8: M | E8: T | F8: H | G8: M | H8: T | I8: H | J8: M | K8: T | L8: H | M8: M | N8: T | O8: H | P8: M | Q8: T | R8: H | S8: M | T8: T | U8: H | V8: M | W8: T | X8: H | Y8: M
A9: Total | B9: =SUM(B10:B28) -> 846 | C9: =SUM(C10:C28) -> 429 | D9: 417 | E9: 348 | F9: 177 | G9: 171 | H9: 136 | I9: 71 | J9: 65 | K9: 96 | L9: 47 | M9: 49 | N9: 77 | O9: 39 | P9: 38 | Q9: 53 | R9: 27 | S9: 26 | T9: 63 | U9: 31 | V9: 32 | W9: 73 | X9: 37 | Y9: 36
A10: 1° Posición | B10: 106 | C10: 59 | D10: 47 | E10: 21 | F10: 14 | G10: 7 | H10: 14 | I10: 10 | J10: 4 | K10: 14 | L10: 6 | M10: 8 | N10: 14 | O10: 8 | P10: 6 | Q10: 14 | R10: 7 | S10: 7 | T10: 14 | U10: 6 | V10: 8 | W10: 15 | X10: 8 | Y10: 7
A11: 2° Posición | B11: 103 | C11: 46 | D11: 57 | E11: 21 | F11: 7 | G11: 14 | H11: 13 | I11: 4 | J11: 9 | K11: 14 | L11: 8 | M11: 6 | N11: 13 | O11: 6 | P11: 7 | Q11: 14 | R11: 7 | S11: 7 | T11: 13 | U11: 7 | V11: 6 | W11: 15 | X11: 7 | Y11: 8
A12: 3° Posición | B12: 102 | C12: 57 | D12: 45 | E12: 21 | F12: 14 | G12: 7 | H12: 13 | I12: 9 | J12: 4 | K12: 14 | L12: 6 | M12: 8 | N12: 13 | O12: 7 | P12: 6 | Q12: 14 | R12: 7 | S12: 7 | T12: 12 | U12: 6 | V12: 6 | W12: 15 | X12: 8 | Y12: 7
A13: 4° Posición | B13: 97 | C13: 43 | D13: 54 | E13: 20 | F13: 6 | G13: 14 | H13: 13 | I13: 4 | J13: 9 | K13: 14 | L13: 8 | M13: 6 | N13: 13 | O13: 6 | P13: 7 | Q13: 11 | R13: 6 | S13: 5 | T13: 12 | U13: 6 | V13: 6 | W13: 14 | X13: 7 | Y13: 7
A14: 5° Posición | B14: 86 | C14: 49 | D14: 37 | E14: 20 | F14: 14 | G14: 6 | H14: 13 | I14: 9 | J14: 4 | K14: 14 | L14: 6 | M14: 8 | N14: 13 | O14: 7 | P14: 6 | Q14: 0 | R14: 0 | S14: 0 | T14: 12 | U14: 6 | V14: 6 | W14: 14 | X14: 7 | Y14: 7
A15: 6° Posición | B15: 57 | C15: 23 | D15: 34 | E15: 20 | F15: 6 | G15: 14 | H15: 12 | I15: 4 | J15: 8 | K15: 14 | L15: 8 | M15: 6 | N15: 11 | O15: 5 | P15: 6 | Q15: 0 | R15: 0 | S15: 0 | T15: 0 | U15: 0 | V15: 0 | W15: 0 | X15: 0 | Y15: 0
A16: 7° Posición | B16: 44 | C16: 27 | D16: 17 | E16: 20 | F16: 14 | G16: 6 | H16: 12 | I16: 8 | J16: 4 | K16: 12 | L16: 5 | M16: 7 | N16: 0 | O16: 0 | P16: 0 | Q16: 0 | R16: 0 | S16: 0 | T16: 0 | U16: 0 | V16: 0 | W16: 0 | X16: 0 | Y16: 0
A17: 8° Posición | B17: 31 | C17: 9 | D17: 22 | E17: 19 | F17: 5 | G17: 14 | H17: 12 | I17: 4 | J17: 8 | K17: 0 | L17: 0 | M17: 0 | N17: 0 | O17: 0 | P17: 0 | Q17: 0 | R17: 0 | S17: 0 | T17: 0 | U17: 0 | V17: 0 | W17: 0 | X17: 0 | Y17: 0
A18: 9° Posición | B18: 30 | C18: 21 | D18: 9 | E18: 18 | F18: 13 | G18: 5 | H18: 12 | I18: 8 | J18: 4 | K18: 0 | L18: 0 | M18: 0 | N18: 0 | O18: 0 | P18: 0 | Q18: 0 | R18: 0 | S18: 0 | T18: 0 | U18: 0 | V18: 0 | W18: 0 | X18: 0 | Y18: 0
A19: 10° Posición | B19: 29 | C19: 9 | D19: 20 | E19: 18 | F19: 5 | G19: 13 | H19: 11 | I19: 4 | J19: 7 | K19: 0 | L19: 0 | M19: 0 | N19: 0 | O19: 0 | P19: 0 | Q19: 0 | R19: 0 | S19: 0 | T19: 0 | U19: 0 | V19: 0 | W19: 0 | X19: 0 | Y19: 0
A20: 11° Posición | B20: 29 | C20: 20 | D20: 9 | E20: 18 | F20: 13 | G20: 5 | H20: 11 | I20: 7 | J20: 4 | K20: 0 | L20: 0 | M20: 0 | N20: 0 | O20: 0 | P20: 0 | Q20: 0 | R20: 0 | S20: 0 | T20: 0 | U20: 0 | V20: 0 | W20: 0 | X20: 0 | Y20: 0
A21: 12° Posición | B21: 18 | C21: 5 | D21: 13 | E21: 18 | F21: 5 | G21: 13 | H21: 0 | I21: 0 | J21: 0 | K21: 0 | L21: 0 | M21: 0 | N21: 0 | O21: 0 | P21: 0 | Q21: 0 | R21: 0 | S21: 0 | T21: 0 | U21: 0 | V21: 0 | W21: 0 | X21: 0 | Y21: 0
A22: 13° Posición | B22: 17 | C22: 13 | D22: 4 | E22: 17 | F22: 13 | G22: 4 | H22: 0 | I22: 0 | J22: 0 | K22: 0 | L22: 0 | M22: 0 | N22: 0 | O22: 0 | P22: 0 | Q22: 0 | R22: 0 | S22: 0 | T22: 0 | U22: 0 | V22: 0 | W22: 0 | X22: 0 | Y22: 0
A23: 14° Posición | B23: 17 | C23: 4 | D23: 13 | E23: 17 | F23: 4 | G23: 13 | H23: 0 | I23: 0 | J23: 0 | K23: 0 | L23: 0 | M23: 0 | N23: 0 | O23: 0 | P23: 0 | Q23: 0 | R23: 0 | S23: 0 | T23: 0 | U23: 0 | V23: 0 | W23: 0 | X23: 0 | Y23: 0
A24: 15° Posición | B24: 17 | C24: 13 | D24: 4 | E24: 17 | F24: 13 | G24: 4 | H24: 0 | I24: 0 | J24: 0 | K24: 0 | L24: 0 | M24: 0 | N24: 0 | O24: 0 | P24: 0 | Q24: 0 | R24: 0 | S24: 0 | T24: 0 | U24: 0 | V24: 0 | W24: 0 | X24: 0 | Y24: 0
A25: 16° Posición | B25: 16 | C25: 4 | D25: 12 | E25: 16 | F25: 4 | G25: 12 | H25: 0 | I25: 0 | J25: 0 | K25: 0 | L25: 0 | M25: 0 | N25: 0 | O25: 0 | P25: 0 | Q25: 0 | R25: 0 | S25: 0 | T25: 0 | U25: 0 | V25: 0 | W25: 0 | X25: 0 | Y25: 0
A26: 17° Posición | B26: 16 | C26: 12 | D26: 4 | E26: 16 | F26: 12 | G26: 4 | H26: 0 | I26: 0 | J26: 0 | K26: 0 | L26: 0 | M26: 0 | N26: 0 | O26: 0 | P26: 0 | Q26: 0 | R26: 0 | S26: 0 | T26: 0 | U26: 0 | V26: 0 | W26: 0 | X26: 0 | Y26: 0
A27: 18° Posición | B27: 16 | C27: 4 | D27: 12 | E27: 16 | F27: 4 | G27: 12 | H27: 0 | I27: 0 | J27: 0 | K27: 0 | L27: 0 | M27: 0 | N27: 0 | O27: 0 | P27: 0 | Q27: 0 | R27: 0 | S27: 0 | T27: 0 | U27: 0 | V27: 0 | W27: 0 | X27: 0 | Y27: 0
A28: 19° Posición | B28: 15 | C28: 11 | D28: 4 | E28: 15 | F28: 11 | G28: 4 | H28: 0 | I28: 0 | J28: 0 | K28: 0 | L28: 0 | M28: 0 | N28: 0 | O28: 0 | P28: 0 | Q28: 0 | R28: 0 | S28: 0 | T28: 0 | U28: 0 | V28: 0 | W28: 0 | X28: 0 | Y28: 0
A30: Fuente: Departamento de Registro de Partidos Políticos del Tribunal Supremo de Elecciones.

Sheet 27
A2: CUADRO 27
A3: COSTA RICA: CANDIDATURAS INSCRITAS A DIPUTACIONES PROPIETARIAS, POR POSICIÓN EN LA PAPELETA Y SEXO
A4: SEGÚN PARTIDO, ELECCIONES 4 DE FEBRERO 2018
B6: Total | E6: 1° Posición | H6: 2° Posición | K6: 3° Posición | N6: 4° Posición | Q6: 5° Posición | T6: 6° Posición y más
B7: T | C7: H | D7: M | E7: T | F7: H | G7: M | H7: T | I7: H | J7: M | K7: T | L7: H | M7: M | N7: T | O7: H | P7: M | Q7: T | R7: H | S7: M | T7: T | U7: H | V7: M
A9: TOTAL | B9: 846 | C9: 429 | D9: 417 | E9: 106 | F9: 59 | G9: 47 | H9: 103 | I9: 46 | J9: 57 | K9: 102 | L9: 57 | M9: 45 | N9: 97 | O9: 43 | P9: 54 | Q9: 86 | R9: 49 | S9: 37 | T9: 352 | U9: 175 | V9: 177
A10: ACCESIBILIDAD SIN EXCLUSIÓN | B10: 57 | C10: 28 | D10: 29 | E10: 7 | F10: 4 | G10: 3 | H10: 7 | I10: 3 | J10: 4 | K10: 7 | L10: 4 | M10: 3 | N10: 7 | O10: 3 | P10: 4 | Q10: 6 | R10: 3 | S10: 3 | T10: 23 | U10: 11 | V10: 12
A11: ACCIÓN CIUDADANA | B11: 57 | C11: 28 | D11: 29 | E11: 7 | F11: 4 | G11: 3 | H11: 7 | I11: 3 | J11: 4 | K11: 7 | L11: 4 | M11: 3 | N11: 7 | O11: 3 | P11: 4 | Q11: 6 | R11: 3 | S11: 3 | T11: 23 | U11: 11 | V11: 12
A12: ACTUEMOS YA | B12: 7 | C12: 4 | D12: 3 | E12: 1 | F12: 1 | G12: 0 | H12: 1 | I12: 0 | J12: 1 | K12: 1 | L12: 1 | M12: 0 | N12: 1 | O12: 0 | P12: 1 | Q12: 1 | R12: 1 | S12: 0 | T12: 2 | U12: 1 | V12: 1
A13: ALIANZA DEMÓCRATA CRISTIANA | B13: 38 | C13: 20 | D13: 18 | E13: 7 | F13: 4 | G13: 3 | H13: 7 | I13: 3 | J13: 4 | K13: 7 | L13: 4 | M13: 3 | N13: 7 | O13: 3 | P13: 4 | Q13: 6 | R13: 4 | S13: 2 | T13: 4 | U13: 2 | V13: 2
A14: AUTÉNTICO LIMONENSE | B14: 5 | C14: 3 | D14: 2 | E14: 1 | F14: 1 | G14: 0 | H14: 1 | I14: 0 | J14: 1 | K14: 1 | L14: 1 | M14: 0 | N14: 1 | O14: 0 | P14: 1 | Q14: 1 | R14: 1 | S14: 0 | T14: 0 | U14: 0 | V14: 0
A15: COMUNAL UNIDO | B15: 19 | C15: 10 | D15: 9 | E15: 1 | F15: 1 | G15: 0 | H15: 1 | I15: 0 | J15: 1 | K15: 1 | L15: 1 | M15: 0 | N15: 1 | O15: 0 | P15: 1 | Q15: 1 | R15: 1 | S15: 0 | T15: 14 | U15: 7 | V15: 7
A16: DE LOS TRABAJADORES | B16: 40 | C16: 21 | D16: 19 | E16: 7 | F16: 4 | G16: 3 | H16: 7 | I16: 3 | J16: 4 | K16: 6 | L16: 4 | M16: 2 | N16: 4 | O16: 2 | P16: 2 | Q16: 4 | R16: 2 | S16: 2 | T16: 12 | U16: 6 | V16: 6
A17: DE LOS TRANSPORTISTAS | B17: 19 | C17: 10 | D17: 9 | E17: 1 | F17: 1 | G17: 0 | H17: 1 | I17: 0 | J17: 1 | K17: 1 | L17: 1 | M17: 0 | N17: 1 | O17: 0 | P17: 1 | Q17: 1 | R17: 1 | S17: 0 | T17: 14 | U17: 7 | V17: 7
A18: FRENTE AMPLIO | B18: 56 | C18: 29 | D18: 27 | E18: 7 | F18: 4 | G18: 3 | H18: 7 | I18: 3 | J18: 4 | K18: 7 | L18: 4 | M18: 3 | N18: 6 | O18: 3 | P18: 3 | Q18: 6 | R18: 3 | S18: 3 | T18: 23 | U18: 12 | V18: 11
A19: FUERZAS UNIDAS PARA EL CAMBIO | B19: 15 | C19: 8 | D19: 7 | E19: 1 | F19: 1 | G19: 0 | H19: 1 | I19: 0 | J19: 1 | K19: 1 | L19: 1 | M19: 0 | N19: 1 | O19: 0 | P19: 1 | Q19: 1 | R19: 1 | S19: 0 | T19: 10 | U19: 5 | V19: 5
A20: INTEGRACIÓN NACIONAL | B20: 57 | C20: 29 | D20: 28 | E20: 7 | F20: 4 | G20: 3 | H20: 7 | I20: 3 | J20: 4 | K20: 7 | L20: 4 | M20: 3 | N20: 7 | O20: 3 | P20: 4 | Q20: 6 | R20: 3 | S20: 3 | T20: 23 | U20: 12 | V20: 11
A21: LIBERACIÓN NACIONAL | B21: 57 | C21: 28 | D21: 29 | E21: 7 | F21: 3 | G21: 4 | H21: 7 | I21: 4 | J21: 3 | K21: 7 | L21: 3 | M21: 4 | N21: 7 | O21: 4 | P21: 3 | Q21: 6 | R21: 2 | S21: 4 | T21: 23 | U21: 12 | V21: 11
A22: LIBERAL PROGRESISTA | B22: 6 | C22: 3 | D22: 3 | E22: 4 | F22: 2 | G22: 2 | H22: 1 | I22: 1 | J22: 0 | K22: 1 | L22: 0 | M22: 1 | N22: 0 | O22: 0 | P22: 0 | Q22: 0 | R22: 0 | S22: 0 | T22: 0 | U22: 0 | V22: 0
A23: MOVIMIENTO LIBERTARIO | B23: 57 | C23: 29 | D23: 28 | E23: 7 | F23: 4 | G23: 3 | H23: 7 | I23: 3 | J23: 4 | K23: 7 | L23: 4 | M23: 3 | N23: 7 | O23: 3 | P23: 4 | Q23: 6 | R23: 4 | S23: 2 | T23: 23 | U23: 11 | V23: 12
A24: NUEVA GENERACIÓN | B24: 54 | C24: 26 | D24: 28 | E24: 7 | F24: 3 | G24: 4 | H24: 7 | I24: 4 | J24: 3 | K24: 7 | L24: 3 | M24: 4 | N24: 6 | O24: 3 | P24: 3 | Q24: 6 | R24: 3 | S24: 3 | T24: 21 | U24: 10 | V24: 11
A25: NUEVO PARTIDO SOCIALISTA | B25: 8 | C25: 4 | D25: 4 | E25: 1 | F25: 1 | G25: 0 | H25: 1 | I25: 0 | J25: 1 | K25: 1 | L25: 1 | M25: 0 | N25: 1 | O25: 0 | P25: 1 | Q25: 1 | R25: 1 | S25: 0 | T25: 3 | U25: 1 | V25: 2
A26: PATRIA, IGUALDAD Y DEMOCRACIA | B26: 19 | C26: 10 | D26: 9 | E26: 1 | F26: 1 | G26: 0 | H26: 1 | I26: 0 | J26: 1 | K26: 1 | L26: 1 | M26: 0 | N26: 1 | O26: 0 | P26: 1 | Q26: 1 | R26: 1 | S26: 0 | T26: 14 | U26: 7 | V26: 7
A27: RECUPERANDO VALORES | B27: 5 | C27: 3 | D27: 2 | E27: 1 | F27: 1 | G27: 0 | H27: 1 | I27: 0 | J27: 1 | K27: 1 | L27: 1 | M27: 0 | N27: 1 | O27: 0 | P27: 1 | Q27: 1 | R27: 1 | S27: 0 | T27: 0 | U27: 0 | V27: 0
A28: RENOVACIÓN COSTARRICENSE | B28: 57 | C28: 29 | D28: 28 | E28: 7 | F28: 3 | G28: 4 | H28: 7 | I28: 4 | J28: 3 | K28: 7 | L28: 3 | M28: 4 | N28: 7 | O28: 4 | P28: 3 | Q28: 6 | R28: 3 | S28: 3 | T28: 23 | U28: 12 | V28: 11
A29: REPUBLICANO SOCIAL CRISTIANO | B29: 57 | C29: 29 | D29: 28 | E29: 7 | F29: 4 | G29: 3 | H29: 7 | I29: 3 | J29: 4 | K29: 7 | L29: 4 | M29: 3 | N29: 7 | O29: 3 | P29: 4 | Q29: 6 | R29: 4 | S29: 2 | T29: 23 | U29: 11 | V29: 12
A30: RESTAURACIÓN NACIONAL | B30: 57 | C30: 28 | D30: 29 | E30: 7 | F30: 3 | G30: 4 | H30: 7 | I30: 4 | J30: 3 | K30: 7 | L30: 3 | M30: 4 | N30: 7 | O30: 4 | P30: 3 | Q30: 6 | R30: 3 | S30: 3 | T30: 23 | U30: 11 | V30: 12
A31: TODOS | B31: 19 | C31: 10 | D31: 9 | E31: 1 | F31: 1 | G31: 0 | H31: 1 | I31: 0 | J31: 1 | K31: 1 | L31: 1 | M31: 0 | N31: 1 | O31: 0 | P31: 1 | Q31: 1 | R31: 1 | S31: 0 | T31: 14 | U31: 7 | V31: 7
A32: UNIDAD SOCIAL CRISTIANA | B32: 57 | C32: 29 | D32: 28 | E32: 7 | F32: 4 | G32: 3 | H32: 7 | I32: 3 | J32: 4 | K32: 7 | L32: 4 | M32: 3 | N32: 7 | O32: 3 | P32: 4 | Q32: 6 | R32: 3 | S32: 3 | T32: 23 | U32: 12 | V32: 11
A33: UNIÓN GUANACASTECA | B33: 4 | C33: 2 | D33: 2 | E33: 1 | F33: 0 | G33: 1 | H33: 1 | I33: 1 | J33: 0 | K33: 1 | L33: 0 | M33: 1 | N33: 1 | O33: 1 | P33: 0 | Q33: 0 | R33: 0 | S33: 0 | T33: 0 | U33: 0 | V33: 0
A34: VAMOS | B34: 19 | C34: 9 | D34: 10 | E34: 1 | F34: 0 | G34: 1 | H34: 1 | I34: 1 | J34: 0 | K34: 1 | L34: 0 | M34: 1 | N34: 1 | O34: 1 | P34: 0 | Q34: 1 | R34: 0 | S34: 1 | T34: 14 | U34: 7 | V34: 7
A36: Fuente: Departamento de Registro de Partidos Políticos del Tribunal Supremo de Elecciones.

Sheet 28
A2: CUADRO 28
A3: COSTA RICA: CANDIDATURAS A DIPUTACIONES EN PROPIEDAD Y SUPLENCIA, POR SEXO
A4: SEGÚN PROVINCIA, ELECCIONES 4 DE FEBRERO DE 2018
A5: (CIFRAS ABSOLUTAS Y RELATIVAS)
A7: PROVINCIA | B7: TOTAL | C7: DIPUTACIONES
C8: HOMBRES | E8: MUJERES
C9: ABS | D9: % | E9: ABS | F9: %
A11: COSTA RICA | B11: 1048 | C11: 531 | D11: 50.66793893 | E11: 517 | F11: 49.33206107
A12: SAN JOSÉ | B12: 415 | C12: 213 | D12: 51.3253012 | E12: 202 | F12: 48.6746988
A13: ALAJUELA | B13: 167 | C13: 85 | D13: 50.89820359 | E13: 82 | F13: 49.10179641
A14: CARTAGO | B14: 118 | C14: 58 | D14: 49.15254237 | E14: 60 | F14: 50.84745763
A15: HEREDIA | B15: 97 | C15: 49 | D15: 50.51546392 | E15: 48 | F15: 49.48453608
A16: GUANACASTE | B16: 74 | C16: 38 | D16: 51.35135135 | E16: 36 | F16: 48.64864865
A17: PUNTARENAS | B17: 84 | C17: 41 | D17: 48.80952381 | E17: 43 | F17: 51.19047619
A18: LIMÓN | B18: 93 | C18: 47 | D18: 50.53763441 | E18: 46 | F18: 49.46236559
A19: EN PROPIEDAD | B19: 846 | C19: 429 | D19: 50.70921986 | E19: 417 | F19: 49.29078014
A20: SAN JOSÉ | B20: 348 | C20: 177 | D20: 50.86206897 | E20: 171 | F20: 49.13793103
A21: ALAJUELA | B21: 136 | C21: 71 | D21: 52.20588235 | E21: 65 | F21: 47.79411765
A22: CARTAGO | B22: 96 | C22: 47 | D22: 48.95833333 | E22: 49 | F22: 51.04166667
A23: HEREDIA | B23: 77 | C23: 39 | D23: 50.64935065 | E23: 38 | F23: 49.35064935
A24: GUANACASTE | B24: 53 | C24: 27 | D24: 50.94339623 | E24: 26 | F24: 49.05660377
A25: PUNTARENAS | B25: 63 | C25: 31 | D25: 49.20634921 | E25: 32 | F25: 50.79365079
A26: LIMÓN | B26: 73 | C26: 37 | D26: 50.68493151 | E26: 36 | F26: 49.31506849
A27: EN SUPLENCIA | B27: 202 | C27: 102 | D27: 50.4950495 | E27: 100 | F27: 49.5049505
A28: SAN JOSÉ | B28: 67 | C28: 36 | D28: 53.73134328 | E28: 31 | F28: 46.26865672
A29: ALAJUELA | B29: 31 | C29: 14 | D29: 45.16129032 | E29: 17 | F29: 54.83870968
A30: CARTAGO | B30: 22 | C30: 11 | D30: 50 | E30: 11 | F30: 50
A31: HEREDIA | B31: 20 | C31: 10 | D31: 50 | E31: 10 | F31: 50
A32: GUANACASTE | B32: 21 | C32: 11 | D32: 52.38095238 | E32: 10 | F32: 47.61904762
A33: PUNTARENAS | B33: 21 | C33: 10 | D33: 47.61904762 | E33: 11 | F33: 52.38095238
A34: LIMÓN | B34: 20 | C34: 10 | D34: 50 | E34: 10 | F34: 50
A37: Fuente: Departamento de Registro de Partidos Políticos del Tribunal Supremo de Elecciones.

Sheet G5
I4: CANDIDATURAS | J4: HOMBRES | K4: MUJERES
I6: TOTAL | J6: =SUM(J8:J14) -> 429 | K6: =SUM(K8:K14) -> 417 | L6: =+K6+J6 -> 846
I8: LIMÓN | J8: 37 | K8: 36 | L8: 7
I9: PUNTARENAS | J9: 31 | K9: 32 | L9: 6
I10: GUANACASTE | J10: 27 | K10: 26 | L10: 5
I11: HEREDIA | J11: 39 | K11: 38 | L11: 4
I12: CARTAGO | J12: 47 | K12: 49 | L12: 3
I13: ALAJUELA | J13: 71 | K13: 65 | L13: 2
I14: SAN JOSÉ | J14: 177 | K14: 171 | L14: 1
A42: Fuente: Cuadro 28.

Sheet 29
A2: CUADRO 29
A3: COSTA RICA: CANDIDATURAS INSCRITAS A DIPUTACIONES
A4: POR AÑO DE ELECCIÓN, SEGÚN PROVINCIA
A5: ELECCIONES 2006, 2010, 2014 y 2018
A7: PROVINCIA | B7: 2006 | C7: 2010 | D7: 2014 | E7: 2018
A9: COSTA RICA | B9: =SUM(B11:B17) -> 1167 | C9: =SUM(C11:C17) -> 789 | D9: =SUM(D11:D17) -> 1052 | E9: =SUM(E11:E17) -> 1048
A11: SAN JOSÉ | B11: 425 | C11: 274 | D11: 356 | E11: =+'28'!B12 -> 415
A12: ALAJUELA | B12: 209 | C12: 153 | D12: 182 | E12: =+'28'!B13 -> 167
A13: CARTAGO | B13: 162 | C13: 106 | D13: 134 | E13: =+'28'!B14 -> 118
A14: HEREDIA | B14: 98 | C14: 70 | D14: 110 | E14: =+'28'!B15 -> 97
A15: GUANACASTE | B15: 84 | C15: 53 | D15: 75 | E15: =+'28'!B16 -> 74
A16: PUNTARENAS | B16: 91 | C16: 63 | D16: 105 | E16: =+'28'!B17 -> 84
A17: LIMÓN | B17: 98 | C17: 70 | D17: 90 | E17: =+'28'!B18 -> 93
A19: Fuente: Departamento de Registro de Partidos Políticos del Tribunal Supremo de Elecciones.

Sheet 30
A2: CUADRO 30
A3: COSTA RICA: CANDIDATURAS INSCRITAS A DIPUTACIONES
A4: POR AÑO DE ELECCIÓN, SEGÚN PARTIDO
A5: ELECCIONES 2006, 2010, 2014 Y 2018
A7: PARTIDO | B7: 2006 | C7: 2010 | D7: 2014 | E7: 2018
A9: COSTA RICA | B9: =SUM(B11:B64) -> 1167 | C9: =SUM(C11:C64) -> 789 | D9: =SUM(D11:D64) -> 1052 | E9: =SUM(E11:E64) -> 1048 | F9: =+E9-'24'!B11 -> 0
A11: ACCESIBILIDAD SIN EXCLUSIÓN | B11: 25 | C11: 75 | D11: 73 | E11: 75
A12: ACCIÓN CIUDADANA | B12: 75 | C12: 74 | D12: 75 | E12: 71
A13: ACCIÓN DEMOCRÁTICA ALAJUELENSE | B13: 14 | C13: 0 | D13: 0 | E13: 0
A14: ACCIÓN LABORISTA AGRÍCOLA | B14: 14 | C14: 0 | D14: 0 | E14: 0
A15: ACTUEMOS YA | B15: 0 | C15: 0 | D15: 0 | E15: 9
A16: ALIANZA DEMÓCRATA CRISTIANA | B16: 0 | C16: 0 | D16: 9 | E16: 38
A17: ALIANZA DEMOCRÁTICA NACIONALISTA | B17: 75 | C17: 0 | D17: 0 | E17: 0
A18: ALIANZA MAYOR | B18: 0 | C18: 25 | D18: 0 | E18: 0
A19: ALIANZA PATRIÓTICA | B19: 0 | C19: 73 | D19: 7 | E19: 0
A20: AUTÉNTICO HEREDIANO | B20: 7 | C20: 0 | D20: 0 | E20: 0
A21: AUTÉNTICO LIMONENSE | B21: 0 | C21: 0 | D21: 0 | E21: 7
A22: AUTÉNTICO TURRIALBEÑO CARTAGINÉS | B22: 9 | C22: 0 | D22: 0 | E22: 0
A23: AVANCE NACIONAL | B23: 0 | C23: 0 | D23: 74 | E23: 0
A24: COALICIÓN IZQUIERDA UNIDA | B24: 75 | C24: 0 | D24: 0 | E24: 0
A25: COMUNAL UNIDO | B25: 0 | C25: 0 | D25: 0 | E25: 24
A26: DE LOS TRABAJADORES | B26: 0 | C26: 0 | D26: 74 | E26: 40
A27: DE LOS TRANSPORTISTAS | B27: 0 | C27: 0 | D27: 24 | E27: 24
A28: FRENTE AMPLIO | B28: 25 | C28: 74 | D28: 75 | E28: 73
A29: FUERZA AGRARIA DE LOS CARTAGINESES | B29: 9 | C29: 0 | D29: 0 | E29: 0
A30: FUERZA DEMOCRÁTICA | B30: 74 | C30: 0 | D30: 0 | E30: 0
A31: FUERZA FAMILIAR ALAJUELENSE | B31: 0 | C31: 14 | D31: 0 | E31: 0
A32: FUERZAS UNIDAS PARA EL CAMBIO | B32: 0 | C32: 0 | D32: 0 | E32: 20
A33: GUANACASTE INDEPENDIENTE | B33: 6 | C33: 0 | D33: 0 | E33: 0
A34: INTEGRACIÓN NACIONAL | B34: 75 | C34: 74 | D34: 69 | E34: 73
A35: INTEGRACIÓN PROVINCIAL TRES | B35: 9 | C35: 0 | D35: 0 | E35: 0
A36: LIBERACIÓN NACIONAL | B36: 75 | C36: 75 | D36: 75 | E36: 74
A37: LIBERAL PROGRESISTA | B37: 0 | C37: 0 | D37: 0 | E37: 6
A38: MOVIMIENTO DE TRABAJADORES Y CAMPESINOS | B38: 7 | C38: 7 | D38: 0 | E38: 0
A39: MOVIMIENTO LIBERTARIO | B39: 75 | C39: 75 | D39: 74 | E39: 75
A40: NUEVA GENERACIÓN | B40: 0 | C40: 0 | D40: 75 | E40: 70
A41: NUEVA LIGA FEMINISTA | B41: 25 | C41: 0 | D41: 0 | E41: 0
A42: NUEVO PARTIDO SOCIALISTA | B42: 0 | C42: 0 | D42: 8 | E42: 8
A43: PATRIA NUEVA | B43: 0 | C43: 0 | D43: 69 | E43: 0
A44: PATRIA PRIMERO | B44: 75 | C44: 0 | D44: 0 | E44: 0
A45: PATRIA, IGUALDAD Y DEMOCRACIA | B45: 0 | C45: 0 | D45: 24 | E45: 22
A46: PATRIA, IGUALDAD Y DEMOCRACIA DE PUNTARENAS | B46: 0 | C46: 0 | D46: 7 | E46: 0
A47: RECUPERANDO VALORES | B47: 0 | C47: 0 | D47: 0 | E47: 5
A48: RENOVACIÓN COSTARRICENSE | B48: 75 | C48: 75 | D48: 75 | E48: 74
A49: REPUBLICANO SOCIAL CRISTIANO | B49: 0 | C49: 0 | D49: 0 | E49: 72
A50: RESTAURACIÓN ALAJUELENSE | B50: 0 | C50: 14 | D50: 0 | E50: 0
A51: RESTAURACIÓN HEREDIANA | B51: 0 | C51: 7 | D51: 0 | E51: 0
A52: RESTAURACIÓN NACIONAL | B52: 25 | C52: 25 | D52: 74 | E52: 70
A53: TODOS | B53: 0 | C53: 0 | D53: 0 | E53: 22
A54: TRANSPARENCIA CARTAGINÉS | B54: 0 | C54: 9 | D54: 0 | E54: 0
A55: UNIDAD SOCIAL CRISTIANA | B55: 75 | C55: 75 | D55: 75 | E55: 66
A56: UNIÓN AGRÍCOLA CARTAGINÉS | B56: 9 | C56: 9 | D56: 0 | E56: 0
A57: UNIÓN GUANACASTECA | B57: 0 | C57: 0 | D57: 0 | E57: 6
A58: UNIÓN NACIONAL | B58: 75 | C58: 0 | D58: 0 | E58: 0
A59: UNIÓN PARA EL CAMBIO | B59: 75 | C59: 0 | D59: 0 | E59: 0
A60: UNIÓN PATRIÓTICA | B60: 75 | C60: 0 | D60: 0 | E60: 0
A61: VAMOS | B61: 0 | C61: 0 | D61: 0 | E61: 24
A62: VERDE | B62: 0 | C62: 0 | D62: 9 | E62: 0
A63: VERDE ECOLOGISTA | B63: 9 | C63: 9 | D63: 0 | E63: 0
A64: VIVA PUNTARENAS | B64: 0 | C64: 0 | D64: 7 | E64: 0
A66: Fuente: Departamento de Registro de Partidos Políticos del Tribunal Supremo de Elecciones.
